{"text_format":"1","workbook":"xlsx","n_sheets":39,"sheets":["Инструкция","REESTR_LINK","Лог обновления","Титульный","Список МО","Водоотведение","Транспортировка","Подключение","Поставка","Ссылки на публикации","Приказ №129","Комментарии","Проверка","AllSheetsInThisWorkbook","printForm_129","TEHSHEET","et_union_hor","et_union_vert","modInfo","modRegion","modReestr","modfrmReestr","modUpdTemplMain","REESTR_ORG","modClassifierValidate","modProv","modHyp","modList00","modList01","modList02","modList03","modList11","modfrmDateChoose","modComm","modThisWorkbook","REESTR_MO","modfrmReestrMR","modfrmCheckUpdates","Лист1"],"not_rendered":{"charts":0,"images":24,"macros":1,"external_links":2,"defined_names":170,"comments":0,"pivot_tables":0},"unopened":[],"bounds":{"document_bytes":16777216,"sheet_cells":100000,"rows_first":2000,"rows_last":500,"rows_between":2000,"halvings":0,"cell_chars":16384,"cell_head_chars":4096},"cells_cut":0,"cells_raw":0,"read":"whole","date_system":"1900"}

{"sheet":"Инструкция","index":0,"n_rows":102,"n_cols":27,"rows_kept":102,"cut":false,"hidden":false,"merged":[[101,5,101,23],[99,5,99,18],[80,4,80,6],[80,7,80,23],[81,4,81,6],[83,7,83,23],[82,7,82,23],[81,7,81,23],[97,4,97,23],[79,8,79,23],[76,4,76,23],[73,4,73,23],[82,4,82,6],[78,4,78,23],[79,4,79,7],[22,15,22,22],[59,7,59,23],[74,4,74,23],[59,4,59,6],[72,4,72,23],[58,4,58,6],[58,7,58,23],[39,4,39,23],[70,4,70,23],[60,7,60,23],[1,1,1,6],[2,1,2,2],[4,1,4,24],[6,4,18,23],[20,5,20,12],[20,15,20,23],[21,15,21,23],[34,4,38,23],[57,4,57,6],[75,4,75,23],[45,4,56,23],[69,4,69,23],[71,4,71,23],[57,7,57,23],[21,5,21,12],[40,4,44,23]]}
[null,null,null,null,null,null,null,null,null,null,null,null,null,null,null,null,null,null,null,null,null,null,null,null,null,null," (требуется обновление)"]
[null,{"$f":"\"Код шаблона: \" & GetCode()","v":"Код шаблона: JKH.OPEN.INFO.PRICE.VO"}]
[null,{"$f":"\"Версия \" & GetVersion()","v":"Версия 6.3.2"}]
[]
[null,"Показатели, подлежащие раскрытию в сфере водоотведения и (или) очистки сточных вод (цены и тарифы)"]
[]
[null,null,null,null,"• На рабочем месте должен быть установлен MS Office 2003 SP3, 2007 SP3, 2010, 2013 с полной версией MS Excel\n\n• Макросы во время работы должны быть включены (!)\n\n• Для корректной работы отчёта требуется выбрать низкий уровень безопасности\n(В меню MS Excel 2003: Сервис | Макрос | Безопасность | выбрать пункт «Низкая безопасность» | OK)\n(В меню MS Excel 2007/2010/2013: Параметры Excel | Центр управления безопасностью | Параметры центра управления безопасностью | Параметры макросов | Включить все макросы | ОК)\n\n• Если Вы работаете в табличном процессоре MS Excel 2007 и выше, то можете использовать для работы формат XLSB (Двоичная книга Excel). При работе в формате XLSB заметно быстрее происходит сохранение файла, а также уменьшается размер по сравнению с форматами XLS и XLSM\n\n• Не рекомендуется снимать защиту с листов и каким-либо образом модифицировать защищаемые формулы и расчётные поля, в противном случае, отчёт будет отклонён системой\n\n• При сохранении не следует выбирать формат XLSX (Книга Excel), так как в указанном формате макросы, необходимые для работы отчёта, безвозвратно удаляются"]
[]
[]
[]
[]
[]
[]
[]
[]
[]
[]
[]
[]
[]
[null,null,null,null,"A"," - необязательные для заполнения",null,null,null,null,null,null,null,null,"A"," - с формулами и константами"]
[null,null,null,null,"A"," - обязательные для заполнения",null,null,null,null,null,null,null,null,"A"," - с выбором значений до двойному клику,"]
[null,null,null,null,null,null,null,null,null,null,null,null,null,null,null,"либо с возможностью выбора даты из календаря или ручного ввода"]
[]
[]
[]
[]
[]
[]
[]
[]
[]
[]
[]
[null,null,null,null,"Если в предложенном Вам списке необходимая организация, МР/МО отсутствуют, обновите реестры с помощью кнопок\n\nВ результате синхронизации с базой данных список организаций (МР/МО) будет заменён актуальным (механизм синхронизации требует подключения к сети Интернет и основан на использовании протокола HTTPS (TCP порт 443))\n\nЕсли после обновления Вам не удалось найти необходимую организацию в списке, обратитесь к ответственному за поддержание реестра Вашего региона."]
[]
[]
[]
[]
[]
[]
[]
[]
[]
[]
[null,null,null,null,"• При сохранении шаблона осуществляется проверка корректности данных, в том числе на наличие значений в ячейках, обязательных для заполнения\n\n• Если какая-то ячейка не удовлетворяет условию проверки, на лист «Проверка» добавляется гиперссылка на данную ячейку и указывается причина ошибки\n\n• В колонке «Статус» для каждого сообщения возможны 2 значения: ошибка и предупреждение\n\n• При наличии сообщений со статусом «Ошибка» шаблон будет отклонён системой и не будет загружен в хранилище данных, сообщения со статусом «Предупреждение» носят информационный характер, и такой шаблон будет принят системой"]
[]
[]
[]
[]
[]
[]
[]
[]
[]
[]
[]
[null,null,null,null,"Web-сайт:",null,null,"http://tariff.support/index.php?a=add&catid=5"]
[]
[]
[]
[]
[]
[]
[]
[]
[]
[]
[]
[null,null,null,null,"Принципы работы с шаблоном"]
[null,null,null,null,"Перед началом работы с шаблоном Вам необходимо нажать кнопку \"Приступить к заполнению\", после чего на форме выбора выбрать из выпадающего списка нужный субъект РФ. После выбора субъекта РФ в шаблоне отобразятся листы для заполнения."]
[null,null,null,null,"На листе «Титульный» нужно заполнить все ячейки голубого и синего цвета.\nДля создания печатной формы нажмите на иконку принтера на листе «Титульный» (левый верхний угол)."]
[null,null,null,null,"Гиперссылки на листах вводите, не нарушая цвет ячейки (если копируете гиперссылку из браузера, то выполните двойной щелчок левой кнопки мыши по ячейке и только после этого можете вставить скопированный элемент)."]
[null,null,null,null,"При вводе даты на расчетных листах необходимо выбрать дату из календаря (иконка справа от выбранной ячейки), либо ввести дату непосредственно в ячейку в формате - 'ДД.ММ.ГГГГ'."]
[null,null,null,null,"Если какой-либо из показателей на расчетных листах для Вашей организации отсутствует, введите в поле, обязательное для заполнение, «0» (для числовых показателей) и «-» (для текстовых)."]
[null,null,null,null,"Внимательно следите за информационными сообщениями на расчетных листах."]
[null,null,null,null,"Все необходимые комментарии по всем формам Вы можете отразить на листе «Комментарии»."]
[]
[null,null,null,null," Обосновывающие материалы необходимо загружать с помощью \"ЕИАС Мониторинг\""]
[null,null,null,null,"Инструкция",null,null,null,"http://tariff.support/download_attachment.php?kb_att=58"]
[null,null,null,null,"Web-сайт:",null,null,"http://tariff.support/index.php?a=add&catid=26"]
[]
[]
[]
[]
[]
[]
[]
[]
[]
[]
[]
[]
[]
[]
[]
[]
[null,null,null,null,"При наличии подключения к Интернет, можно автоматически проверять наличие доступных обновлений. Выберите способ оповещения о наличии обновлений для отчёта:"]
[]
[null,null,null,null,null,"проверять доступные обновления (рекомендуется)",null,null,null,null,null,null,null,null,null,null,null,null,null,null,null,null,null,null,null,null,"y"]
[]
[null,null,null,null,null,"никогда не проверять наличие обновлений (не рекомендуется)"]

{"sheet":"REESTR_LINK","index":1,"n_rows":2,"n_cols":3,"rows_kept":2,"cut":false,"hidden":true,"merged":[]}
["ID","LINK_NAME","REGION"]
[64275710,"https://tariff.eias.ru/disclo/get_file?p_guid=????????-????-????-????-????????????","ALL"]

{"sheet":"Лог обновления","index":2,"n_rows":7,"n_cols":3,"rows_kept":7,"cut":false,"hidden":true,"merged":[]}
["Дата/Время","Сообщение","Статус"]
["2017-01-24T11:26:23","Проверка доступных обновлений...","Информация"]
["2017-01-24T11:26:24","Версия шаблона 6.3.2 актуальна, обновление не требуется","Информация"]
["2017-12-26T11:19:18","Проверка доступных обновлений...","Информация"]
["2017-12-26T11:19:18","Нет доступных обновлений для шаблона с кодом JKH.OPEN.INFO.PRICE.VO!","Информация"]
["2018-01-17T14:01:40","Проверка доступных обновлений...","Информация"]
["2018-01-17T14:01:40","Нет доступных обновлений для шаблона с кодом JKH.OPEN.INFO.PRICE.VO!","Информация"]

{"sheet":"Титульный","index":3,"n_rows":53,"n_cols":6,"rows_kept":53,"cut":false,"hidden":false,"merged":[[4,4,4,5]]}
[null,null,null,null,null,27649410]
[]
[]
[null,null,null,null,null,{"$f":"version","v":"Версия 6.3.2"}]
[null,null,null,null,"Показатели, подлежащие раскрытию в сфере водоотведения и (или) очистки сточных вод (цены и тарифы)"]
[]
[null,null,null,null,"Субъект РФ","Чувашская республика"]
[]
[null,null,null,null,"Публикация","На сайте регулирующего органа"]
[]
[null,null,null,null,"По желанию организации информация раскрыта в дополнительных источниках публикации?","да"]
[]
[null,null,null,null,null,"Период регулирования"]
[null,null,null,null,"Начало очередного периода регулирования","01.01.2017"]
[null,null,null,null,"Окончание очередного периода регулирования","31.12.2018"]
[]
[null,null,null,null,"Является ли данное юридическое лицо подразделением (филиалом) другой организации","нет"]
[]
[null,null,null,null,"Наименование организации","ЗАО СКК \"Солнечный берег\""]
[null,null,null,null,"Наименование филиала"]
[null,null,null,null,"ИНН","2116480110"]
[null,null,null,null,"КПП","211601001"]
[]
[null,null,null,null,"Вид деятельности","Оказание услуг в сфере водоотведения и очистки сточных вод"]
[]
[null,null,null,null,"Тариф","тариф на водоотведение"]
[]
[null,null,null,null,"Режим налогообложения","общий"]
[null,null,null,null,null,"НДС (Отметка об учтенном НДС)"]
[null,null,null,null,"Организации-перепродавцы","тариф указан с НДС для плательщиков НДС"]
[null,null,null,null,"Бюджетные потребители","тариф указан без НДС для плательщиков НДС"]
[null,null,null,null,"Население","тариф с НДС организаций-плательщиков НДС"]
[null,null,null,null,"Прочие","тариф указан без НДС для плательщиков НДС"]
[]
[null,null,null,null,"Наличие двухставочного тарифа","нет"]
[]
[null,null,null,null,null,"Адрес регулируемой организации"]
[null,null,null,null,"Юридический адрес","Чебоксарский муниципальный район, п. Сюктерка, ул. Солнечный берег, д.1"]
[null,null,null,null,"Почтовый адрес","Чебоксарский муниципальный район, п. Сюктерка, ул. Солнечный берег, д.1"]
[]
[null,null,null,null,null,"Руководитель"]
[null,null,null,null,"Фамилия, имя, отчество","Николаев Олег Георгиевич"]
[null,null,null,null,"(код) номер телефона","(8352) 40-69-75"]
[]
[null,null,null,null,null,"Главный бухгалтер"]
[null,null,null,null,"Фамилия, имя, отчество","Ласточкина Эльвира Михайловна"]
[null,null,null,null,"(код) номер телефона","(8352) 40-63-85"]
[]
[null,null,null,null,null,"Должностное лицо, ответственное за составление формы"]
[null,null,null,null,"Фамилия, имя, отчество","Борисов Григорий Алексеевич"]
[null,null,null,null,"Должность","инженер ООС"]
[null,null,null,null,"(код) номер телефона","(8352) 40-60-94"]
[null,null,null,null,"e-mail","solber@inbox.ru"]

{"sheet":"Список МО","index":4,"n_rows":16,"n_cols":8,"rows_kept":16,"cut":false,"hidden":false,"merged":[[3,3,3,7],[4,3,4,7],[6,5,6,7],[7,5,7,7],[8,5,8,7],[13,3,14,3],[13,4,14,4]]}
[]
[]
[]
[null,null,null,"Дифференциация тарифа"]
[null,null,null,{"$f":"IF(org=0,\"Не определено\",org)","v":"ЗАО СКК \"Солнечный берег\""}]
[]
[null,null,null,null,null,"Признак дифференциации тарифа (централизованная система ВО, либо МО оказания услуг)"]
[null,null,null,null,"Условный порядковый номер",1]
[null,null,null,null,"Описание","1"]
[]
[null,null,null,"№ п/п","Муниципальный район","№ п/п","Муниципальное образование","ОКТМО"]
[null,null,null,"1","2","3","4","5"]
[null,null,null,0,null,0]
[null,null,null,1,"Чебоксарский муниципальный район",1,"Вурман-Сюктерское","97644420"]
[null,null,null,null,null,null,"Добавить МО"]
[null,null,null,null,"Добавить МР"]

{"sheet":"Водоотведение","index":5,"n_rows":20,"n_cols":24,"rows_kept":20,"cut":false,"hidden":false,"merged":[[12,21,15,21],[12,22,15,22],[7,4,10,4],[7,22,10,22],[7,21,10,21],[9,12,9,13],[9,5,10,5],[8,11,8,13],[8,8,8,10],[8,5,8,7],[18,5,18,23],[4,4,4,23],[5,4,5,23],[7,19,9,20],[9,9,9,10],[9,11,10,11],[12,19,15,19],[12,20,15,20],[9,15,9,16],[9,14,10,14],[16,5,16,18],[19,5,19,23],[7,17,9,18],[9,6,9,7],[9,8,10,8],[7,5,7,16],[7,23,10,23],[8,14,8,16]]}
[]
[]
[]
[]
[null,null,null,null,"Информация о тарифах на водоотведение*"]
[null,null,null,null,{"$f":"IF(org=0,\"Не определено\",org)","v":"ЗАО СКК \"Солнечный берег\""}]
[null,null,null,null,null,null,null,null,null,null,null,null,null,null,null,null,null,null,null,null,null,null,null,"Форма 3.2 Приказа ФСТ России №129 от 15 мая 2013 г."]
[null,null,null,null,"№ п/п","Величина установленного тарифа на водоотведение",null,null,null,null,null,null,null,null,null,null,null,"Срок действия установленного тарифа на водоотведение",null,"Реквизиты решения об установлении тарифа на водоотведение",null,"Наименование органа регулирования, принявшего решение об установлении тарифа на водоотведение","Источник официального опубликования решения об установлении тарифа на водоотведение","Примечание"]
[null,null,null,null,null,"Организации-перепродавцы",null,null,"Бюджетные потребители",null,null,"Население",null,null,"Прочие"]
[null,null,null,null,null,"Одноставочный тариф, руб./куб.м","Двухставочный тариф",null,"Одноставочный тариф, руб./куб.м","Двухставочный тариф",null,"Одноставочный тариф, руб./куб.м","Двухставочный тариф",null,"Одноставочный тариф, руб./куб.м","Двухставочный тариф"]
[null,null,null,null,null,null,"ставка за водоотведение или очистку сточных вод, руб./куб.м","ставка за содержание системы водоотведения и (или) очистки сточных вод, тыс.руб./куб.м/ч/мес",null,"ставка за водоотведение или очистку сточных вод, руб./куб.м","ставка за содержание системы водоотведения и (или) очистки сточных вод, тыс.руб./куб.м/ч/мес",null,"ставка за водоотведение или очистку сточных вод, руб./куб.м","ставка за содержание системы водоотведения и (или) очистки сточных вод, тыс.руб./куб.м/ч/мес",null,"ставка за водоотведение или очистку сточных вод, руб./куб.м","ставка за содержание системы водоотведения и (или) очистки сточных вод, тыс.руб./куб.м/ч/мес","дата начала","дата окончания","дата","номер"]
[null,null,null,null,"1","2","3","4","5","6","7","8","9","10","11","12","13","14","15","16","17","18","19","20"]
[null,null,null,null,1,17.489999999999998,null,null,17.489999999999998,null,null,20.64,null,null,20.64,null,null,"01.01.2017","30.06.2017","11.12.2015","91-14-20/в","Государственная служба Чувашской Республики по конкурентной политике и тарифам","Республиканская газета \"Вести Чувашии\""]
[null,null,"О",null,2,18.010000000000002,null,null,18.010000000000002,null,null,21.25,null,null,21.25,null,null,"01.07.2017","31.12.2017"]
[null,null,"О",null,3,18.010000000000002,null,null,18.010000000000002,null,null,21.25,null,null,21.25,null,null,"01.01.2018","30.06.2018"]
[null,null,"О",null,4,18.420000000000002,null,null,18.420000000000002,null,null,21.74,null,null,21.74,null,null,"01.07.2018","31.12.2018"]
[null,null,null,null,null,"Добавить период"]
[]
[null,null,null,null,"*","заполняется на основании решения соответствующего органа регулирования тарифов об установлении тарифов по регулируемому виду деятельности"]
[null,null,null,null,null,"информация раскрывается только по системе водоотведения, указанной на листе \"Список МО\""]

{"sheet":"Транспортировка","index":6,"n_rows":17,"n_cols":24,"rows_kept":17,"cut":false,"hidden":true,"merged":[[16,5,16,23],[4,4,4,23],[5,4,5,23],[7,4,10,4],[7,5,7,16],[7,17,9,18],[7,21,10,21],[8,8,8,10],[15,5,15,23],[7,19,9,20],[7,23,10,23],[9,15,9,16],[9,6,9,7],[9,9,9,10],[8,5,8,7],[9,5,10,5],[9,8,10,8],[9,14,10,14],[13,5,13,18],[8,11,8,13],[8,14,8,16],[9,11,10,11],[9,12,9,13],[7,22,10,22]]}
[]
[]
[]
[]
[null,null,null,null,"Информация о тарифах на транспортировку сточных вод*"]
[null,null,null,null,{"$f":"IF(org=0,\"Не определено\",org)","v":"ЗАО СКК \"Солнечный берег\""}]
[null,null,null,null,null,null,null,null,null,null,null,null,null,null,null,null,null,null,null,null,null,null,null,"Форма 3.3 Приказа ФСТ России №129 от 15 мая 2013 г."]
[null,null,null,null,"№ п/п","Величина установленнного тарифа на транспортировку сточных вод",null,null,null,null,null,null,null,null,null,null,null,"Срок действия установленного тарифа на транспортировку сточных вод",null,"Реквизиты решения об установлении тарифа на транспортировку сточных вод",null,"Наименование органа регулирования, принявшего решение об установлении тарифа на транспортировку сточных вод","Источник официального опубликования решения об установлении тарифа на транспортировку сточных вод","Примечание"]
[null,null,null,null,null,"Организации-перепродавцы",null,null,"Бюджетные потребители",null,null,"Население",null,null,"Прочие"]
[null,null,null,null,null,"Одноставочный тариф, руб./куб.м","Двухставочный тариф",null,"Одноставочный тариф, руб./куб.м","Двухставочный тариф",null,"Одноставочный тариф, руб./куб.м","Двухставочный тариф",null,"Одноставочный тариф, руб./куб.м","Двухставочный тариф"]
[null,null,null,null,null,null,"ставка за водоотведение или очистку сточных вод, руб./куб.м","ставка за содержание системы водоотведения и (или) очистки сточных вод, тыс.руб./куб.м/ч/мес",null,"ставка за водоотведение или очистку сточных вод, руб./куб.м","ставка за содержание системы водоотведения и (или) очистки сточных вод, тыс.руб./куб.м/ч/мес",null,"ставка за водоотведение или очистку сточных вод, руб./куб.м","ставка за содержание системы водоотведения и (или) очистки сточных вод, тыс.руб./куб.м/ч/мес",null,"ставка за водоотведение или очистку сточных вод, руб./куб.м","ставка за содержание системы водоотведения и (или) очистки сточных вод, тыс.руб./куб.м/ч/мес","дата начала","дата окончания","дата","номер"]
[null,null,null,null,"1","2","3","4","5","6","7","8","9","10","11","12","13","14","15","16","17","18","19","20"]
[null,null,null,null,1]
[null,null,null,null,null,"Добавить период"]
[]
[null,null,null,null,"*","заполняется на основании решения соответствующего органа регулирования тарифов об установлении тарифов по регулируемому виду деятельности"]
[null,null,null,null,null,"информация раскрывается только по системе водоотведения, указанной на листе \"Список МО\""]

{"sheet":"Подключение","index":7,"n_rows":17,"n_cols":27,"rows_kept":17,"cut":false,"hidden":true,"merged":[[7,19,9,20],[7,5,7,16],[9,6,10,6],[4,4,4,26],[5,4,5,26],[13,5,13,14],[9,16,10,16],[8,11,8,13],[15,5,15,26],[9,8,10,8],[9,13,10,13],[7,4,10,4],[7,17,9,18],[9,7,10,7],[9,9,10,9],[9,10,10,10],[9,12,10,12],[8,14,8,16],[16,5,16,26],[9,5,10,5],[9,11,10,11],[9,14,10,14],[7,22,10,22],[9,15,10,15],[7,23,9,26],[8,5,8,7],[8,8,8,10],[7,21,10,21]]}
[]
[]
[]
[]
[null,null,null,null,"Информация о тарифах на подключение к централизованной системе водоотведения*"]
[null,null,null,null,{"$f":"IF(org=0,\"Не определено\",org)","v":"ЗАО СКК \"Солнечный берег\""}]
[null,null,null,null,null,null,null,null,null,null,null,null,null,null,null,null,null,null,null,null,null,null,null,null,null,null,"Форма 3.4 Приказа ФСТ России №129 от 15 мая 2013 г."]
[null,null,null,null,"№ п/п","Величина установленного тарифа за подключение к централизованной системе водоотведения",null,null,null,null,null,null,null,null,null,null,null,"Срок действия установленного тарифа за подключение к централизованной системе водоотведения",null,"Реквизиты решения об установлении тарифа за подключение к централизованной системе водоотведения",null,"Наименование органа регулирования, принявшего решение об установлении тарифа за подключение к централизованной системе водоотведения","Источник официального опубликования решения об установлении тарифа за подключение к централизованной системе водоотведения","Признаки дифференциации ставки"]
[null,null,null,null,null,"Организации-перепродавцы",null,null,"Бюджетные потребители",null,null,"Население",null,null,"Прочие"]
[null,null,null,null,null,"Размер платы за подключение, тыс. руб. (руб.)","ставка тарифа за подключаемую нагрузку канализационной сети, тыс руб/куб м в сут","ставка тарифа за протяженность канализационной сети диаметром d, тыс руб/км","Размер платы за подключение, тыс. руб. (руб.)","ставка тарифа за подключаемую нагрузку канализационной сети, тыс руб/куб м в сут","ставка тарифа за протяженность канализационной сети диаметром d, тыс руб/км","Размер платы за подключение, тыс. руб. (руб.)","ставка тарифа за подключаемую нагрузку канализационной сети, тыс руб/куб м в сут","ставка тарифа за протяженность канализационной сети диаметром d, тыс руб/км","Размер платы за подключение, тыс. руб. (руб.)","ставка тарифа за подключаемую нагрузку канализационной сети, тыс руб/куб м в сут","ставка тарифа за протяженность канализационной сети диаметром d, тыс руб/км"]
[null,null,null,null,null,null,null,null,null,null,null,null,null,null,null,null,null,"дата начала","дата окончания","дата","номер",null,null,"подключаемая нагрузка канализационной сети(куб.м/сут)","диаметр канализационной сети (мм)","протяженность канализационной сети (км)","условия прокладки сетей"]
[null,null,null,null,"1","2","3","4","5","6","7","8","9","10","11","12","13","14","15","16","17","18","19","20","21","22","23"]
[null,null,null,null,"1"]
[null,null,null,null,null,"Добавить период"]
[]
[null,null,null,null,"*","заполняется на основании решения соответствующего органа регулирования тарифов об установлении тарифов по регулируемому виду деятельности"]
[null,null,null,null,null,"информация раскрывается только по системе водоотведения, указанной на листе \"Список МО\""]

{"sheet":"Поставка","index":8,"n_rows":19,"n_cols":8,"rows_kept":19,"cut":false,"hidden":false,"merged":[[4,3,4,7],[5,3,5,7],[17,4,17,7],[18,4,18,7],[9,3,9,7],[11,3,11,7]]}
[]
[]
[]
[]
[null,null,null,"Информация об условиях, на которых осуществляется поставка регулируемых товаров (оказание регулируемых услуг).\nИнформация о порядке выполнения технологических, технических и других мероприятий, связанных с подключением к централизованной системе водоотведения"]
[null,null,null,{"$f":"IF(org=0,\"Не определено\",org)","v":"ЗАО СКК \"Солнечный берег\""}]
[]
[null,null,null,"№ п/п","Информация, подлежащая раскрытию","Значение","Ссылки\nна документы","Примечание"]
[null,null,null,"1","2","3","4","5"]
[null,null,null,"Раскрытие информации в соответствии с формой 3.9 Приказа ФСТ России №129 от 15 мая 2013 г."]
[null,null,null,1,"сведения об условиях публичных договоров поставок регулируемых товаров, оказания регулируемых услуг, в том числе договоров о подключении к централизованной системе водоотведения*","http://sbereg.ru",null,"не предусмотрено"]
[null,null,null,"Раскрытие информации в соответствии с формой 3.10 Приказа ФСТ России №129 от 15 мая 2013 г."]
[null,3,null,2,"форма заявки о подключении к централизованной системе водоотведения**","http://sbereg.ru",null,"не предусмотрено"]
[null,null,null,3,"перечень документов, представляемых одновременно с заявкой о подключении к централизованной системе водоотведения","не предусмотрено",null,"не предусмотрено"]
[null,3,null,4,"реквизиты нормативного правового акта, регламентирующего порядок действий заявителя и регулируемой организации при подаче, приеме, обработке заявки о подключении к централизованной системе водоотведения, принятии решения и уведомлении о принятом решении","не предусмотрено",null,"не предусмотрено"]
[null,3,null,5,"телефоны и адреса службы, ответственной за прием и обработку заявок о подключении к централизованной системе водоотведения","не предусмотрено",null,"не предусмотрено"]
[]
[null,null,null,null,"* При заполнении указывается ссылка на публичные договоры поставок регулируемых товаров, оказания регулируемых услуг, договоры о подключении к централизованной системе горячего водоснабжения, размещенные в сети \"Интернет\" согласно п.12 ПРАВИЛ ЗАПОЛНЕНИЯ ФОРМ ПРЕДОСТАВЛЕНИЯ ИНФОРМАЦИИ, ПОДЛЕЖАЩЕЙ РАСКРЫТИЮ, ОРГАНИЗАЦИЯМИ, ОСУЩЕСТВЛЯЮЩИМИ ГОРЯЧЕЕ ВОДОСНАБЖЕНИЕ, ХОЛОДНОЕ ВОДОСНАБЖЕНИЕ И ВОДООТВЕДЕНИЕ, И ОРГАНАМИ РЕГУЛИРОВАНИЯ ТАРИФОВ, утвержденных приказом ФСТ России от 15 мая 2013 г. N 129"]
[null,null,null,null,"** При заполнении указывается ссылка на форму заявки регулируемой организации, размещенную в сети \"Интернет\", согласно п.13 ПРАВИЛ ЗАПОЛНЕНИЯ ФОРМ ПРЕДОСТАВЛЕНИЯ ИНФОРМАЦИИ, ПОДЛЕЖАЩЕЙ РАСКРЫТИЮ, ОРГАНИЗАЦИЯМИ, ОСУЩЕСТВЛЯЮЩИМИ ГОРЯЧЕЕ ВОДОСНАБЖЕНИЕ, ХОЛОДНОЕ ВОДОСНАБЖЕНИЕ И ВОДООТВЕДЕНИЕ, И ОРГАНАМИ РЕГУЛИРОВАНИЯ ТАРИФОВ, утвержденных приказом ФСТ России от 15 мая 2013 г. N 129"]

{"sheet":"Ссылки на публикации","index":9,"n_rows":17,"n_cols":8,"rows_kept":17,"cut":false,"hidden":false,"merged":[[4,3,4,7],[5,3,5,7],[14,0,15,0],[14,4,14,7],[10,0,11,0],[10,4,10,7],[12,0,13,0],[12,4,12,7]]}
[]
[]
[]
[]
[null,null,null,"Ссылки на публикации"]
[null,null,null,{"$f":"IF(org=0,\"Не определено\",org)","v":"ЗАО СКК \"Солнечный берег\""}]
[]
[]
[null,null,null,"№ п/п","Содержание","Наименование сайта","Дата размещения информации","Адрес страницы сайта в сети \"Интернет\", на которой размещена информация"]
[null,null,null,"1","2","3","4","5"]
["1",null,null,{"$f":"A11","v":"1"},"Информация о тарифах на регулируемые товары (услуги) в сфере водоотведения (п.36 Постановления Правительства Российской Федерации от 17 января 2013 г. N 6 \"О стандартах раскрытия информации в сфере водоснабжения и водоотведения\")"]
[null,null,null,{"$f":"A11&\".1\"","v":"1.1"},"Сайт организации в сети Интернет","http://sbereg.ru","01.12.2016","http://sbereg.ru"]
["2",null,null,{"$f":"A13","v":"2"},"Информация об условиях, на которых осуществляется поставка регулируемых товаров и (или) оказание регулируемых услуг (п.44 Постановления Правительства Российской Федерации от 17 января 2013 г. N 6 \"О стандартах раскрытия информации в сфере водоснабжения и водоотведения\")"]
[null,null,null,{"$f":"A13&\".1\"","v":"2.1"},"Сайт организации в сети Интернет","http://sbereg.ru","01.12.2016","http://sbereg.ru"]
["3",null,null,{"$f":"A15","v":"3"},"Информация о порядке выполнения технологических, технических и других мероприятий, связанных с подключением к централизованной системе водоотведения (п.45 Постановления Правительства Российской Федерации от 17 января 2013 г. N 6 \"О стандартах раскрытия информации в сфере водоснабжения и водоотведения\")"]
[null,null,null,{"$f":"A15&\".1\"","v":"3.1"},"Сайт организации в сети Интернет","http://sbereg.ru","01.12.2016","http://sbereg.ru"]
[null,null,null,null,"Добавить"]

{"sheet":"Приказ №129","index":10,"n_rows":53,"n_cols":3,"rows_kept":53,"cut":false,"hidden":true,"merged":[[47,1,47,2],[3,1,3,2],[15,1,15,2],[27,1,27,2],[39,1,39,2]]}
[]
[null,null,"Приложение 3\nк приказу ФСТ России\nот 15 мая 2013 г. N 129"]
[]
[null,"Форма 3.2. Информация о тарифе на водоотведение "]
[]
[null,"Наименование органа регулирования, принявшего      решение об утверждении тарифа на водоотведение"]
[null,"Реквизиты (дата, номер) решения об утверждении     тарифа на водоотведение"]
[null,"Величина установленного тарифа на водоотведение"]
[null,"Срок действия установленного тарифа на     водоотведение"]
[null,"Источник официального опубликования решения об     установлении тарифа на водоотведение"]
[]
[]
[]
[null,null,"Приложение 3\nк приказу ФСТ России\nот 15 мая 2013 г. N 129"]
[]
[null,"Форма 3.3. Информация о тарифе на транспортировку сточных вод"]
[]
[null,"Наименование   органа   регулирования,   принявшего решение об утверждении  тарифа  на  транспортировку сточных вод"]
[null,"Реквизиты  (дата,  номер)  решения  об  утверждении тарифа на транспортировку сточных вод"]
[null,"Величина установленного тарифа  на  транспортировку сточных вод"]
[null,"Срок    действия    установленного    тарифа     на транспортировку сточных вод"]
[null,"Источник  официального  опубликования  решения   об установлении тарифа на транспортировку сточных вод"]
[]
[]
[]
[null,null,"Приложение 3\nк приказу ФСТ России\nот 15 мая 2013 г. N 129"]
[]
[null,"Форма 3.4. Информация о тарифах на подключение к централизованной системе водоотведения"]
[]
[null,"Наименование органа регулирования тарифов,         принявшего решение об утверждении тарифа на        подключение к централизованной системе             водоотведения"]
[null,"Реквизиты решения об утверждении тарифа на         подключение к централизованной системе             водоотведения"]
[null,"Величина установленного тарифа на подключение к    централизованной системе водоотведения"]
[null,"Срок действия установленного тарифа на подключение к централизованной системе водоотведения"]
[null,"Источник официального опубликования решения об     установлении тарифа на подключение к               централизованной системе водоотведения"]
[]
[]
[]
[null,null,"Приложение 3\nк приказу ФСТ России\nот 15 мая 2013 г. N 129"]
[]
[null,"Форма 3.9. Информация об условиях, на которых осуществляется поставка регулируемых товаров и (или) оказание регулируемых услуг"]
[]
[null,"Сведения об условиях публичных  договоров  поставок регулируемых товаров, оказания регулируемых  услуг, в   том   числе   договоров   о    подключении    к централизованной системе холодного водоснабжения"]
[]
[]
[]
[null,null,"Приложение 3\nк приказу ФСТ России\nот 15 мая 2013 г. N 129"]
[]
[null,"Форма 3.10. Информация о порядке выполнения технологических, технических и других мероприятий, связанных с подключением к централизованной системе водоотведения"]
[]
[null,"Форма  заявки  о  подключении  к   централизованной системе водоотведения"]
[null,"Перечень документов, представляемых одновременно  с заявкой о подключении  к  централизованной  системе водоотведения"]
[null,"Реквизиты     нормативного     правового      акта, регламентирующего  порядок  действий  заявителя   и регулируемой  организации   при   подаче,   приеме, обработке заявки о подключении  к  централизованной системе   водоотведения,   принятии    решения    и уведомлении о принятом решении"]
[null,"Телефоны и адреса службы, ответственной за прием  и обработку заявок о подключении  к  централизованной системе водоотведения"]

{"sheet":"Комментарии","index":11,"n_rows":13,"n_cols":5,"rows_kept":13,"cut":false,"hidden":false,"merged":[[6,3,6,4],[7,3,7,4]]}
[]
[]
[]
[]
[]
[]
[null,null,null,"Комментарии"]
[null,null,null,{"$f":"IF(org=0,\"Не определено\",org)","v":"ЗАО СКК \"Солнечный берег\""}]
[]
[null,null,null,"№ п/п","Комментарий"]
[null,null,null,"1","2"]
[null,null,null,0]
[null,null,null,null,"Добавить"]

{"sheet":"Проверка","index":12,"n_rows":4,"n_cols":5,"rows_kept":4,"cut":false,"hidden":false,"merged":[[1,1,1,4]]}
[]
[null,"Результат проверки"]
[]
[null,"Ссылка1","Ссылка2","Причина","Статус"]

{"sheet":"AllSheetsInThisWorkbook","index":13,"n_rows":1,"n_cols":2,"rows_kept":1,"cut":false,"hidden":true,"merged":[]}
["Расчетные листы","Скрытые листы"]

{"sheet":"printForm_129","index":14,"n_rows":53,"n_cols":3,"rows_kept":53,"cut":false,"hidden":true,"merged":[[39,1,39,2],[47,1,47,2],[27,1,27,2],[3,1,3,2],[15,1,15,2]]}
[]
[null,null,"Приложение 3\nк приказу ФСТ России\nот 15 мая 2013 г. N 129"]
[]
[null,"Форма 3.2. Информация о тарифе на водоотведение "]
[]
[null,"Наименование органа регулирования, принявшего      решение об утверждении тарифа на водоотведение"]
[null,"Реквизиты (дата, номер) решения об утверждении     тарифа на водоотведение"]
[null,"Величина установленного тарифа на водоотведение"]
[null,"Срок действия установленного тарифа на     водоотведение"]
[null,"Источник официального опубликования решения об     установлении тарифа на водоотведение"]
[]
[]
[]
[null,null,"Приложение 3\nк приказу ФСТ России\nот 15 мая 2013 г. N 129"]
[]
[null,"Форма 3.3. Информация о тарифе на транспортировку сточных вод"]
[]
[null,"Наименование   органа   регулирования,   принявшего решение об утверждении  тарифа  на  транспортировку сточных вод"]
[null,"Реквизиты  (дата,  номер)  решения  об  утверждении тарифа на транспортировку сточных вод"]
[null,"Величина установленного тарифа  на  транспортировку сточных вод"]
[null,"Срок    действия    установленного    тарифа     на транспортировку сточных вод"]
[null,"Источник  официального  опубликования  решения   об установлении тарифа на транспортировку сточных вод"]
[]
[]
[]
[null,null,"Приложение 3\nк приказу ФСТ России\nот 15 мая 2013 г. N 129"]
[]
[null,"Форма 3.4. Информация о тарифах на подключение к централизованной системе водоотведения"]
[]
[null,"Наименование органа регулирования тарифов,         принявшего решение об утверждении тарифа на        подключение к централизованной системе             водоотведения"]
[null,"Реквизиты решения об утверждении тарифа на         подключение к централизованной системе             водоотведения"]
[null,"Величина установленного тарифа на подключение к    централизованной системе водоотведения"]
[null,"Срок действия установленного тарифа на подключение к централизованной системе водоотведения"]
[null,"Источник официального опубликования решения об     установлении тарифа на подключение к               централизованной системе водоотведения"]
[]
[]
[]
[null,null,"Приложение 3\nк приказу ФСТ России\nот 15 мая 2013 г. N 129"]
[]
[null,"Форма 3.9. Информация об условиях, на которых осуществляется поставка регулируемых товаров и (или) оказание регулируемых услуг"]
[]
[null,"Сведения об условиях публичных  договоров  поставок регулируемых товаров, оказания регулируемых  услуг, в   том   числе   договоров   о    подключении    к централизованной системе холодного водоснабжения"]
[]
[]
[]
[null,null,"Приложение 3\nк приказу ФСТ России\nот 15 мая 2013 г. N 129"]
[]
[null,"Форма 3.10. Информация о порядке выполнения технологических, технических и других мероприятий, связанных с подключением к централизованной системе водоотведения"]
[]
[null,"Форма  заявки  о  подключении  к   централизованной системе водоотведения"]
[null,"Перечень документов, представляемых одновременно  с заявкой о подключении  к  централизованной  системе водоотведения"]
[null,"Реквизиты     нормативного     правового      акта, регламентирующего  порядок  действий  заявителя   и регулируемой  организации   при   подаче,   приеме, обработке заявки о подключении  к  централизованной системе   водоотведения,   принятии    решения    и уведомлении о принятом решении"]
[null,"Телефоны и адреса службы, ответственной за прием  и обработку заявок о подключении  к  централизованной системе водоотведения"]

{"sheet":"TEHSHEET","index":15,"n_rows":87,"n_cols":17,"rows_kept":87,"cut":false,"hidden":true,"merged":[]}
["REGION",null,"year_list","logical","Месяц\n(MONTH)","Квартал\n(QUARTER)","Месяц\n(kind_of_publication)","НДС\n/kind_of_NDS/","Номер СЦХВ(СЦВО)\n/SKI_number/","Единица измерения объема оказываемых услуг ГВС\n/kind_of_unit_GVS/","Метод регулирования\n/kind_of_control_method/","Вид деятельности, на которую установлен тариф /kind_of_activity_WARM/","виды тарифа\n/kind_group_rates/",null,null,null,"Вид теплоносителя\n(kind_of_heat_transfer)"]
["Алтайский край",null,2013,"да","январь","I квартал","На официальном сайте организации","общий","1","тыс.куб.м/сутки","метод экономически обоснованных расходов (затрат)","Передача+Сбыт","тариф на водоотведение",null,null,null,"горячая вода"]
["Амурская область",null,2014,"нет","февраль","II квартал","На сайте регулирующего органа","общий с учетом освобождения от уплаты НДС","2","Гкал/ч","метод индексации установленных тарифов","Передача","тариф на транспортировку сточных вод",null,null,null,"отборный пар, 1,2-2,5 кг/см2"]
["Архангельская область",null,2015,null,"март","III квартал",null,"специальный (упрощенная система налогообложения, система налогообложения для сельскохозяйственных товаропроизводителей)","3","куб.м/ч","метод обеспечения доходности инвестированного капитала","производство комбинированная выработка","тариф на подключение к централизованной системе водоотведения",null,null,null,"отборный пар, 2,5-7 кг/см2"]
["Астраханская область",null,2016,null,"апрель","IV квартал",null,null,"4",null,"метод сравнения аналогов","производство (некомбинированная выработка)+передача+сбыт",null,null,null,null,"отборный пар, 7-13 кг/см2"]
["Белгородская область",null,2017,null,"май",null,"НДС общий\n/kind_of_NDS_tariff/","НДС\n/kind_of_NDS_tariff/","5","Вид тарифа на передачу тепловой энергии /kind_of_tariff_unit/",null,"производство (некомбинированная выработка)+передача",null,null,null,null,"отборный пар, > 13 кг/см2"]
["Брянская область",null,null,null,"июнь",null,"тариф указан с НДС для плательщиков НДС","тариф для организаций не являющихся плательщиками НДС","6","тыс.руб./куб.м/ч/мес",null,"производство (некомбинированная выработка)+сбыт",null,null,null,null,"острый редуцированный пар"]
["Владимирская область",null,null,null,"июль",null,"тариф указан без НДС для плательщиков НДС","тариф не утверждался","7","Гкал/ч",null,"производство (некомбинированная выработка)",null,null,null,null,"горячая вода в системе централизованного теплоснабжения на отопление"]
["Волгоградская область",null,null,null,"август",null,"тариф не утверждался",null,"8",null,null,null,null,null,null,null,"горячая вода в системе централизованного теплоснабжения на горячее водоснабжение"]
["Вологодская область",null,null,null,"сентябрь",null,null,null,"9",null,null,null,null,null,null,null,"другой"]
["Воронежская область",null,null,null,"октябрь",null,null,null,"10"]
["г.Байконур",null,null,null,"ноябрь",null,"НДС общий люди\n/kind_of_NDS_tariff_people/","НДС\n/kind_of_NDS_tariff_people/","11"]
["г. Москва",null,null,null,"декабрь",null,"тариф с НДС организаций-плательщиков НДС","тариф организаций не являющихся плательщиками НДС","12"]
["г.Санкт-Петербург",null,null,null,null,null,"тариф не утверждался","тариф не утверждался","13"]
["г.Севастополь",null,null,null,null,null,null,null,"14"]
["Еврейская автономная область",null,null,null,null,null,null,null,"15"]
["Забайкальский край",null,null,null,null,null,null,null,"16"]
["Ивановская область",null,null,null,null,null,null,null,"17"]
["Иркутская область",null,null,null,null,null,null,null,"18"]
["Кабардино-Балкарская республика",null,null,null,null,null,null,null,"19"]
["Калининградская область",null,null,null,null,null,null,null,"20"]
["Калужская область"]
["Камчатский край"]
["Карачаево-Черкесская республика"]
["Кемеровская область"]
["Кировская область"]
["Костромская область"]
["Краснодарский край"]
["Красноярский край"]
["Курганская область"]
["Курская область"]
["Ленинградская область"]
["Липецкая область"]
["Магаданская область"]
["Московская область"]
["Мурманская область"]
["Ненецкий автономный округ"]
["Нижегородская область"]
["Новгородская область"]
["Новосибирская область"]
["Омская область"]
["Оренбургская область"]
["Орловская область"]
["Пензенская область"]
["Пермский край"]
["Приморский край"]
["Псковская область"]
["Республика Адыгея"]
["Республика Алтай"]
["Республика Башкортостан"]
["Республика Бурятия"]
["Республика Дагестан"]
["Республика Ингушетия"]
["Республика Калмыкия"]
["Республика Карелия"]
["Республика Коми"]
["Республика Крым"]
["Республика Марий Эл"]
["Республика Мордовия"]
["Республика Саха (Якутия)"]
["Республика Северная Осетия-Алания"]
["Республика Татарстан"]
["Республика Тыва"]
["Республика Хакасия"]
["Ростовская область"]
["Рязанская область"]
["Самарская область"]
["Саратовская область"]
["Сахалинская область"]
["Свердловская область"]
["Смоленская область"]
["Ставропольский край"]
["Тамбовская область"]
["Тверская область"]
["Томская область"]
["Тульская область"]
["Тюменская область"]
["Удмуртская республика"]
["Ульяновская область"]
["Хабаровский край"]
["Ханты-Мансийский автономный округ"]
["Челябинская область"]
["Чеченская республика"]
["Чувашская республика"]
["Чукотский автономный округ"]
["Ямало-Ненецкий автономный округ"]
["Ярославская область"]

{"sheet":"et_union_hor","index":16,"n_rows":51,"n_cols":22,"rows_kept":51,"cut":false,"hidden":true,"merged":[[3,4,4,4],[22,23,24,23],[22,24,24,24],[22,4,23,4],[15,0,16,0],[3,3,4,3],[15,4,15,7],[22,0,24,0],[22,1,23,1],[22,25,24,25],[22,19,24,19],[22,20,24,20],[22,21,24,21],[22,22,24,22],[28,1,29,1],[28,4,29,4],[28,5,29,5],[22,5,23,5],[46,4,46,15],[47,4,47,6],[47,7,47,9],[47,10,47,12],[47,13,47,15],[48,4,49,4],[48,5,49,5],[48,6,49,6],[48,7,49,7],[48,8,49,8],[48,15,49,15],[48,9,49,9],[48,10,49,10],[48,11,49,11],[48,12,49,12],[48,13,49,13],[48,14,49,14]]}
[]
["et_List01","et_List01_1"]
[]
[null,null,null,null,null,1]
[null,null,null,null,null,null,"Добавить МО"]
[]
[]
["et_Comm"]
[]
[]
[]
[]
["et_List03"]
[]
[]
[null,null,null,{"$f":"A16","v":0}]
[null,null,null,{"$f":"A16&\".1\"","v":".1"},"Сайт организации в сети Интернет"]
[]
[]
[]
["et_List02"]
[]
["1",1,null,null,{"$f":"A23&\".\"&B23","v":"1.1"},null,"через тепловую сеть",null,null,null,null,null,null,null,null,null,null,null,null,"","",""]
[null,null,null,null,null,null,"отпуск с коллекторов"]
[null,null,null,null,null,"Добавить вид теплоносителя"]
[]
["et_List02_1"]
[]
[null,null,null,null,{"$f":"A29&\".\"&B29","v":"."},null,"через тепловую сеть"]
[null,null,null,null,null,null,"отпуск с коллекторов"]
[]
["et_List06"]
[]
[null,null,null,null,1]
[]
[]
["et_List08"]
[]
[null,null,null,null,"1"]
[]
["et_List10"]
[]
[null,null,null,null,1]
[]
["et_List08_table"]
[]
[null,null,null,null,"Величина установленного тарифа за подключение к централизованной системе водоотведения"]
[null,null,null,null,"Организации-перепродавцы",null,null,"Бюджетные потребители",null,null,"Население",null,null,"Прочие"]
[null,null,null,null,"Размер платы за подключение, тыс. руб. (руб.)","ставка тарифа за подключаемую нагрузку канализационной сети, руб/куб м в сут","ставка тарифа за расстояние от точки подключения (технологического присоединения) объекта заявителя до точки подключения канализационных сетей к объектам централизованных систем водоснабжения, руб/км","Размер платы за подключение, тыс. руб. (руб.)","ставка тарифа за подключаемую нагрузку канализационной сети, руб/куб м в сут","ставка тарифа за расстояние от точки подключения (технологического присоединения) объекта заявителя до точки подключения канализационных сетей к объектам централизованных систем водоснабжения, руб/км","Размер платы за подключение, тыс. руб. (руб.)","ставка тарифа за подключаемую нагрузку канализационной сети, руб/куб м в сут","ставка тарифа за расстояние от точки подключения (технологического присоединения) объекта заявителя до точки подключения канализационных сетей к объектам централизованных систем водоснабжения, руб/км","Размер платы за подключение, тыс. руб. (руб.)","ставка тарифа за подключаемую нагрузку канализационной сети, руб/куб м в сут","ставка тарифа за расстояние от точки подключения (технологического присоединения) объекта заявителя до точки подключения канализационных сетей к объектам централизованных систем водоснабжения, руб/км"]
[]
[null,null,null,null,"2","3","4","5","6","7","8","9","10","11","12","13"]

{"sheet":"et_union_vert","index":17,"n_rows":0,"n_cols":0,"rows_kept":0,"cut":false,"hidden":true,"merged":[]}

{"sheet":"modInfo","index":18,"n_rows":19,"n_cols":2,"rows_kept":19,"cut":false,"hidden":true,"merged":[]}
[null,"Титульный"]
[null,"Для выбора того или иного источника публикации выполните двойной щелчок по синей ячейке напротив соответствующего источника.\nВНИМАНИЕ! Если Вы снимаете галочку с пункта, то будут скрыты и очищены соответствующие строки на листе \"Ссылки на публикации\"!\n\nОпубликование перечисленных в шаблоне показателей на сайте организации в сети Интернет и в печатных изданиях не обязательно, если данный шаблон предоставлен по системе ЕИАС (региональный сегмент)."]
[null,"Обязательное опубликование на официальном сайте органа исполнительной власти субъекта Российской Федерации в области государственного регулирования тарифов (на официальном сайте органа местного самоуправления поселения или городского округа в случае передачи законом субъекта Российской Федерации полномочий по утверждению тарифов в сфере водоснабжения и водоотведения органам местного самоуправления) предусмотрено пунктом 3 (а) постановления Правительства №6 от 17.01.2013"]
[null,"Задайте период регулирования, выбрав даты начала и окончания очередного периода регулирования из календаря (иконка справа от указанной ячейки), либо введите дату непосредственно в ячейку в формате - 'ДД.ММ.ГГГГ'"]
[null,"Шаблон заполняется раздельно по каждому виду тарифа"]
[null,"В зависимости от указанного вида деятельности будут доступны для заполнения поля 'Производство', 'Передача' и 'Сбыт'"]
[null,"Если выбрано 'да', на листах с разбивкой по потребителям доступны для заполнения графы для двухставочного ставочного тарифа по группам потребителей"]
[null,"Если выбрано 'да', значения тарифов для групп потребителей на листах с разбивкой по потребителям заполнятся автоматически значениями первой группы"]
[null,"Ссылки на публикации"]
[null,"Вводите адрес сайта, не нарушая цвет ячейки /если копируете гиперссылку из браузера, то выполните двойной щелчок по ячейке и только после этого можете вставить скопированный элемент/"]
[null,"Обосновывающие материалы необходимо загружать с помощью \"ЕИАС Мониторинг\". Ссылка на инструкцию по загрузке обосновывающих материалов расположена на листе 'Инструкция' в п.'Методология заполнения'.\n\nВвводите ссылку, не нарушая цвет ячейки /если копируете гиперссылку из браузера, то выполните двойной щелчок по ячейке и только после этого можете вставить скопированный элемент/."]
[null,"Если для какого-либо пункта графы 'Наименование источника (сайта или печатного издания)' информация не раскрывалась, то в соответствующем поле укажите - 'не раскрывалась'"]
[null,"Список МО"]
[null,"В случае, если тариф не дифференцируется по централизованным системам ВО, либо по МО оказания услуг, укажите все МР, на территории которых оказывается данный вид деятельности.\n\nВ случае, если тариф дифференцируется по централизованным системам ВО, укажите все МР, на территории которых размещена данная централизованная система ВО.\n\nВ случае, если тариф дифференцируется по МО оказания услуг, укажите все МР, на которые установлен один тариф, по которому заполняется данный шаблон."]
[null,"В случае, если тариф не дифференцируется по централизованным системам ВО, либо по МО оказания услуг, укажите все МО, на территории которых оказывается данный вид деятельности.\n\nВ случае, если тариф дифференцируется по централизованным системам ВО, укажите все МО, на территории которых размещена данная централизованная система ВО.\n\nВ случае, если тариф дифференцируется по МО оказания услуг, укажите все МО, на которые установлен один тариф, по которому заполняется данный шаблон."]
[null,"Признак дифференциации тарифа"]
[null,"В случае, если тариф не дифференцируется по централизованным системам ВО, либо по МО оказания услуг, введите 1.\n\nВ случае, если тариф дифференцируется по централизованным системам ВО, введите значение от 1 до 100. Информацию по каждой централизованной системе ВО, на которую установлен один отдельный тариф, необходимо заполнять в отдельном шаблоне. \n\nВ случае, если тариф дифференцируется по МО оказания услуг, введите значение от 1 до 100. Информацию по МО, на которое (-ые) установлен один отдельный тариф, необходимо заполнять в отдельном шаблоне. \n\n(!) Внимание (!) В каждом шаблоне, заполненном по одному признаку дифференциации тарифа (централизованная система ВО или МО оказания услуг), обязательно указывать разные условные порядковые номера"]
[null,"Стандарты"]
[null,"В качестве примечания Вы можете указать единицу измерения"]

{"sheet":"modRegion","index":19,"n_rows":0,"n_cols":0,"rows_kept":0,"cut":false,"hidden":true,"merged":[]}

{"sheet":"modReestr","index":20,"n_rows":0,"n_cols":0,"rows_kept":0,"cut":false,"hidden":true,"merged":[]}

{"sheet":"modfrmReestr","index":21,"n_rows":0,"n_cols":0,"rows_kept":0,"cut":false,"hidden":true,"merged":[]}

{"sheet":"modUpdTemplMain","index":22,"n_rows":0,"n_cols":0,"rows_kept":0,"cut":false,"hidden":true,"merged":[]}

{"sheet":"REESTR_ORG","index":23,"n_rows":147,"n_cols":12,"rows_kept":147,"cut":false,"hidden":true,"merged":[]}
["№","NSRF","MR_NAME","OKTMO_MR_NAME","MO_NAME","OKTMO_NAME","RST_ORG_ID","ORG_NAME","INN_NAME","KPP_NAME","VDET_NAME"]
[1,"Чувашская республика","Аликовский муниципальный район","97605000","Аликовское","97605405","26319876","ООО \"Тепловодоканал\"","2102421361","210201001","Оказание услуг в сфере водоотведения и очистки сточных вод","VO"]
[2,"Чувашская республика","Батыревский муниципальный район","97607000","Батыревское","97607410","26354710","ООО \"Батыревский водоканал\"","2103904643","210301001","Оказание услуг в сфере водоотведения и очистки сточных вод","VO"]
[3,"Чувашская республика","Батыревский муниципальный район","97607000","Батыревское","97607410","28817120","ООО \"Водолей\"","2103002042","210301001","Оказание услуг в сфере водоотведения и очистки сточных вод","VO"]
[4,"Чувашская республика","Вурнарский муниципальный район","97610000","Вурнарское","97610151","26379247","ОАО \"Вурнарский завод СОМ\"","2104006184","210401001","Оказание услуг в сфере водоотведения и очистки сточных вод","VO"]
[5,"Чувашская республика","Вурнарский муниципальный район","97610000","Вурнарское","97610151","26776992","ООО \"Водоканал\"","2104007886","210401001","Оказание услуг в сфере водоотведения и очистки сточных вод","VO"]
[6,"Чувашская республика","Вурнарский муниципальный район","97610000","Вурнарское","97610151","28142092","ООО \"Водолей\"","2104008079","210401001","Оказание услуг в сфере водоотведения и очистки сточных вод","VO"]
[7,"Чувашская республика","Вурнарский муниципальный район","97610000","Вурнарское","97610151","26824566","ООО \"Вурнары Завод СОМ\"","2129007126","212901001","Оказание услуг в сфере водоотведения и очистки сточных вод","VO"]
[8,"Чувашская республика","Вурнарский муниципальный район","97610000","Вурнарское","97610151","26780235","ООО \"Вурнары Завод СОМ\"","2104007910","210401001","Оказание услуг в сфере водоотведения и очистки сточных вод","VO"]
[9,"Чувашская республика","Вурнарский муниципальный район","97610000","Вурнарское","97610151","26776258","ООО \"Март\"","2104006145","210401001","Оказание услуг в сфере водоотведения и очистки сточных вод","VO"]
[10,"Чувашская республика","Вурнарский муниципальный район","97610000","Вурнарское","97610151","30832135","ООО \"Управляющая компания\"","2104008255","210401001","Оказание услуг в сфере водоотведения и очистки сточных вод","VO"]
[11,"Чувашская республика","Вурнарский муниципальный район","97610000","Вурнарское","97610151","26354711","ФГОУ СПО \"Вурнарский сельскохозяйственный техникум\"","2104000295","210401001","Оказание услуг в сфере водоотведения и очистки сточных вод","VO"]
[12,"Чувашская республика","Вурнарский муниципальный район","97610000","Калининское","97610440","26776258","ООО \"Март\"","2104006145","210401001","Оказание услуг в сфере водоотведения и очистки сточных вод","VO"]
[13,"Чувашская республика","Вурнарский муниципальный район","97610000","Калининское","97610440","27666342","ООО \"Росс\"","2130092790","213001001","Оказание услуг в сфере водоотведения и очистки сточных вод","VO"]
[14,"Чувашская республика","Вурнарский муниципальный район","97610000","Калининское","97610440","26641564","ООО \"Строитель\"","2104004677","210401001","Оказание услуг в сфере водоотведения и очистки сточных вод","VO"]
[15,"Чувашская республика","Вурнарский муниципальный район","97610000","Кольцовское","97610444","26776258","ООО \"Март\"","2104006145","210401001","Оказание услуг в сфере водоотведения и очистки сточных вод","VO"]
[16,"Чувашская республика","Вурнарский муниципальный район","97610000","Санарпосинское","97610468","26776258","ООО \"Март\"","2104006145","210401001","Оказание услуг в сфере водоотведения и очистки сточных вод","VO"]
[17,"Чувашская республика","Вурнарский муниципальный район","97610000","Санарпосинское","97610468","26641564","ООО \"Строитель\"","2104004677","210401001","Оказание услуг в сфере водоотведения и очистки сточных вод","VO"]
[18,"Чувашская республика","Вурнарский муниципальный район","97610000","Янгорчинское","97610484","26776258","ООО \"Март\"","2104006145","210401001","Оказание услуг в сфере водоотведения и очистки сточных вод","VO"]
[19,"Чувашская республика","Город Алатырь","97704000","Город Алатырь","97704000","28821713","МУП \"Водоканал\"","2122007310","212201001","Оказание услуг в сфере водоотведения и очистки сточных вод","VO"]
[20,"Чувашская республика","Город Алатырь","97704000","Город Алатырь","97704000","26379284","ООО \"Сети\"","2122005962","212201001","Оказание услуг в сфере водоотведения и очистки сточных вод","VO"]
[21,"Чувашская республика","Город Канаш","97707000","Город Канаш","97707000","26808802","Горьковская дирекция по тепловодоснабжению структурное подразделение Центральной дирекции по тепловодоснабжению - филиала ОАО \"РЖД\"","7708503727","525745041","Оказание услуг в сфере водоотведения и очистки сточных вод","VO"]
[22,"Чувашская республика","Город Канаш","97707000","Город Канаш","97707000","30990479","МУП \"Каналсеть\" муниципального образования г. Канаш Чувашской Республики","2123019284","212301001","Оказание услуг в сфере водоотведения и очистки сточных вод","VO"]
[23,"Чувашская республика","Город Канаш","97707000","Город Канаш","97707000","26379285","ООО \"Водоотведение\"","2123007994","212301001","Оказание услуг в сфере водоотведения и очистки сточных вод","VO"]
[24,"Чувашская республика","Город Канаш","97707000","Город Канаш","97707000","27912072","ООО \"Каналсеть\"","2123012458","212301001","Оказание услуг в сфере водоотведения и очистки сточных вод","VO"]
[25,"Чувашская республика","Город Канаш","97707000","Город Канаш","97707000","27056836","ООО \"УК \"Водоканал\"","2123007930","212301001","Оказание услуг в сфере водоотведения и очистки сточных вод","VO"]
[26,"Чувашская республика","Город Новочебоксарск","97710000","Город Новочебоксарск","97710000","26434033","ГУП Чувашской Республики \"БОС\" Минстроя Чувашии","2124014112","212401001","Оказание услуг в сфере водоотведения и очистки сточных вод","VO"]
[27,"Чувашская республика","Город Новочебоксарск","97710000","Город Новочебоксарск","97710000","26370830","МУП \"Коммунальные сети города Новочебоксарска\"","2124000310","212401001","Оказание услуг в сфере водоотведения и очистки сточных вод","VO"]
[28,"Чувашская республика","Город Новочебоксарск","97710000","Город Новочебоксарск","97710000","27639342","ООО \"ЖБК №2\"","2124021977","212401001","Оказание услуг по перекачке","VO"]
[29,"Чувашская республика","Город Новочебоксарск","97710000","Город Новочебоксарск","97710000","28068503","ООО \"СУОР\"","2127311917","213001001","Оказание услуг в сфере водоотведения и очистки сточных вод","VO"]
[30,"Чувашская республика","Город Новочебоксарск","97710000","Город Новочебоксарск","97710000","26379288","ПАО \"Химпром\"","2124009521","212401001","Оказание услуг по перекачке","VO"]
[31,"Чувашская республика","Город Новочебоксарск","97710000","Город Новочебоксарск","97710000","28980669","Публичное акционерное общество \"Т Плюс\", Красногорский район Московской области","6315376946","502401001","Оказание услуг по перекачке","VO"]
[32,"Чувашская республика","Город Новочебоксарск","97710000","Город Новочебоксарск","97710000","26796651","Филиал ПАО \"РусГидро\" - \"Чебоксарская ГЭС\"","2460066195","212402001","Оказание услуг по перекачке","VO"]
[33,"Чувашская республика","Город Чебоксары","97701000","Город Чебоксары","97701000","26379295","АО \"Водоканал\"","2130017760","213001001","Оказание услуг в сфере водоотведения и очистки сточных вод","VO"]
[34,"Чувашская республика","Город Чебоксары","97701000","Город Чебоксары","97701000","26354795","АО \"Санаторий \"Чувашия\"","2129027450","213001001","Оказание услуг в сфере водоотведения и очистки сточных вод","VO"]
[35,"Чувашская республика","Город Чебоксары","97701000","Город Чебоксары","97701000","26354782","АО \"Чебоксарское ПО им. В.И.Чапаева\"","2130095159","213001001","Оказание услуг по перекачке","VO"]
[36,"Чувашская республика","Город Чебоксары","97701000","Город Чебоксары","97701000","26319860","АО \"Чувашхлебопродукт\" - филиал Чебоксарский элеватор","2130092180","213043001","Оказание услуг по перекачке","VO"]
[37,"Чувашская республика","Город Чебоксары","97701000","Город Чебоксары","97701000","26808802","Горьковская дирекция по тепловодоснабжению структурное подразделение Центральной дирекции по тепловодоснабжению - филиала ОАО \"РЖД\"","7708503727","525745041","Оказание услуг в сфере водоотведения и очистки сточных вод","VO"]
[38,"Чувашская республика","Город Чебоксары","97701000","Город Чебоксары","97701000","28069826","ОАО \"Волжская Текстильная Компания\"","2130005081","213050001","Оказание услуг по перекачке","VO"]
[39,"Чувашская республика","Город Чебоксары","97701000","Город Чебоксары","97701000","28156166","ОАО \"Волжская Текстильная Компания\"","2130005081","213001001","Оказание услуг по перекачке","VO"]
[40,"Чувашская республика","Город Чебоксары","97701000","Город Чебоксары","97701000","30985674","ОАО \"Чебоксарский завод промышленных тракторов\" (ОАО \"Промтрактор\")","2126003074","213050001","Оказание услуг по перекачке","VO"]
[41,"Чувашская республика","Город Чебоксары","97701000","Город Чебоксары","97701000","28422099","ООО \"МежРегионТоргЦентр\"","2127323180","213001001","Оказание услуг по перекачке","VO"]
[42,"Чувашская республика","Город Чебоксары","97701000","Город Чебоксары","97701000","28068503","ООО \"СУОР\"","2127311917","213001001","Оказание услуг в сфере водоотведения и очистки сточных вод","VO"]
[43,"Чувашская республика","Город Чебоксары","97701000","Город Чебоксары","97701000","30836096","ООО \"Управляющая компания \"Управдом\"","2130072962","213001001","Оказание услуг по перекачке","VO"]
[44,"Чувашская республика","Город Чебоксары","97701000","Город Чебоксары","97701000","28940212","ООО \"Устра\"","2130036788","213001001","Оказание услуг по перекачке","VO"]
[45,"Чувашская республика","Город Чебоксары","97701000","Город Чебоксары","97701000","28830489","ПАО \"Т плюс\" Филиал « Марий Эл и Чувашии»","6315376946","213043001","Оказание услуг по перекачке","VO"]
[46,"Чувашская республика","Город Чебоксары","97701000","Город Чебоксары","97701000","28980669","Публичное акционерное общество \"Т Плюс\", Красногорский район Московской области","6315376946","502401001","Оказание услуг по перекачке","VO"]
[47,"Чувашская республика","Город Чебоксары","97701000","Город Чебоксары","97701000","26796651","Филиал ПАО \"РусГидро\" - \"Чебоксарская ГЭС\"","2460066195","212402001","Оказание услуг по перекачке","VO"]
[48,"Чувашская республика","Город Шумерля","97713000","Город Шумерля","97713000","26808802","Горьковская дирекция по тепловодоснабжению структурное подразделение Центральной дирекции по тепловодоснабжению - филиала ОАО \"РЖД\"","7708503727","525745041","Оказание услуг в сфере водоотведения и очистки сточных вод","VO"]
[49,"Чувашская республика","Город Шумерля","97713000","Город Шумерля","97713000","26370831","МУП ШПУ \"Водоканал\"","2125001099","212501001","Оказание услуг в сфере водоотведения и очистки сточных вод","VO"]
[50,"Чувашская республика","Город Шумерля","97713000","Город Шумерля","97713000","26354780","ОАО \"Шумерлинский завод специализированных автомобилей\"\"","2125000458","212501001","Оказание услуг по перекачке","VO"]
[51,"Чувашская республика","Ибресинский муниципальный район","97613000","Ибресинское","97613151","26370774","МУП \"Водоканал Ибресинского района\"","2105004729","210501001","Оказание услуг в сфере водоотведения и очистки сточных вод","VO"]
[52,"Чувашская республика","Ибресинский муниципальный район","97613000","Ибресинское","97613151","30866311","ООО \"Каналсеть+\"","2105006035","210501001","Оказание услуг в сфере очистки сточных вод","VO"]
[53,"Чувашская республика","Канашский муниципальный район","97616000","Хучельское","97616462","30990479","МУП \"Каналсеть\" муниципального образования г. Канаш Чувашской Республики","2123019284","212301001","Оказание услуг в сфере водоотведения и очистки сточных вод","VO"]
[54,"Чувашская республика","Канашский муниципальный район","97616000","Хучельское","97616462","26379285","ООО \"Водоотведение\"","2123007994","212301001","Оказание услуг в сфере водоотведения и очистки сточных вод","VO"]
[55,"Чувашская республика","Канашский муниципальный район","97616000","Хучельское","97616462","27912072","ООО \"Каналсеть\"","2123012458","212301001","Оказание услуг в сфере водоотведения и очистки сточных вод","VO"]
[56,"Чувашская республика","Канашский муниципальный район","97616000","Шихазанское","97616476","26824075","ООО \"Промремстрой\"","2129048891","212301001","Оказание услуг в сфере водоотведения и очистки сточных вод","VO"]
[57,"Чувашская республика","Канашский муниципальный район","97616000","Шихазанское","97616476","28460191","ООО \"УК ЖКХ \"Канашская\"","2123013797","212301001","Оказание услуг в сфере водоотведения и очистки сточных вод","VO"]
[58,"Чувашская республика","Козловский муниципальный район","97619000","Козловское","97619101","30961236","МУП \"Жилищно-коммунальное хозяйство Козловского района\"","2107005654","210701001","Оказание услуг в сфере водоотведения и очистки сточных вод","VO"]
[59,"Чувашская республика","Козловский муниципальный район","97619000","Козловское","97619101","26936693","ООО \"Жилремстрой\"","2130084125","213001001","Оказание услуг в сфере водоотведения и очистки сточных вод","VO"]
[60,"Чувашская республика","Козловский муниципальный район","97619000","Козловское","97619101","26370778","ФКУ \"ИК № 5 УФСИН по Чувашской Республике - Чувашии\"","2107003946","210701001","Оказание услуг в сфере водоотведения","VO"]
[61,"Чувашская республика","Козловский муниципальный район","97619000","Тюрлеминское","97619445","28422769","ООО \"УК\"Звезда\"","2107903070","210701001","Оказание услуг в сфере водоотведения и очистки сточных вод","VO"]
[62,"Чувашская республика","Козловский муниципальный район","97619000","Тюрлеминское","97619445","27666354","ООО \"Управляющая компания \"Звезда\"","2107903070","210701001","Оказание услуг в сфере водоотведения и очистки сточных вод","VO"]
[63,"Чувашская республика","Комсомольский муниципальный район","97621000","Комсомольское","97621425","26777086","ООО \"Коммунальный сервис\"","2108007245","210801001","Оказание услуг в сфере водоотведения и очистки сточных вод","VO"]
[64,"Чувашская республика","Комсомольский муниципальный район","97621000","Комсомольское","97621425","26370781","ООО ПК \"Кооператор\"","2108002141","210801001","Оказание услуг в сфере водоотведения и очистки сточных вод","VO"]
[65,"Чувашская республика","Красноармейский муниципальный район","97624000","Красноармейское","97624430","26354732","МУП ЖКХ Красноармейского района","2109000362","210901001","Оказание услуг в сфере водоотведения и очистки сточных вод","VO"]
[66,"Чувашская республика","Красночетайский муниципальный район","97626000","Красночетайское","97626430","26354734","Муниципальное многоотраслевое производственное предприятие ЖКХ","2110000600","211001001","Оказание услуг в сфере водоотведения и очистки сточных вод","VO"]
[67,"Чувашская республика","Красночетайский муниципальный район","97626000","Красночетайское","97626430","26936634","ООО \"Исток\"","2110051516","211001001","Оказание услуг в сфере водоотведения и очистки сточных вод","VO"]
[68,"Чувашская республика","Мариинско-Посадский муниципальный район","97629000","Мариинско-Посадское","97629101","28421343","МУП \"Городок\"","2111008200","211101001","Оказание услуг в сфере водоотведения и очистки сточных вод","VO"]
[69,"Чувашская республика","Мариинско-Посадский муниципальный район","97629000","Мариинско-Посадское","97629101","31004889","МУП ЖКУ Мариинско-посадского городского поселения Мариинско-посадского района","2111002575","211101001","Оказание услуг в сфере водоотведения и очистки сточных вод","VO"]
[70,"Чувашская республика","Мариинско-Посадский муниципальный район","97629000","Мариинско-Посадское","97629101","30989943","ООО \"Вител 11\"","2111002536","211101001","Оказание услуг в сфере очистки сточных вод","VO"]
[71,"Чувашская республика","Мариинско-Посадский муниципальный район","97629000","Мариинско-Посадское","97629101","28425185","ООО \"Вител\"","2130056368","211101001","Оказание услуг в сфере водоотведения и очистки сточных вод","VO"]
[72,"Чувашская республика","Мариинско-Посадский муниципальный район","97629000","Мариинско-Посадское","97629101","26370789","ООО \"Водоканал\"","2111005801","211101001","Оказание услуг в сфере водоотведения и очистки сточных вод","VO"]
[73,"Чувашская республика","Мариинско-Посадский муниципальный район","97629000","Мариинско-Посадское","97629101","28827792","ООО \"Источник\"","2111008760","211101001","Оказание услуг в сфере водоотведения и очистки сточных вод","VO"]
[74,"Чувашская республика","Мариинско-Посадский муниципальный район","97629000","Мариинско-Посадское","97629101","26641654","Филиал ОАО \"Росспиртпром\" \"Спиртовой завод \"Марпосадский\"","7730605160","211143001","Оказание услуг в сфере водоотведения и очистки сточных вод","VO"]
[75,"Чувашская республика","Мариинско-Посадский муниципальный район","97629000","Мариинско-Посадское","97629101","28072360","Филиал ОАО \"Росспиртпром\" \"Спиртовой заод \"Марпосадский\"","7730605160","773001001","Оказание услуг в сфере водоотведения и очистки сточных вод","VO"]
[76,"Чувашская республика","Мариинско-Посадский муниципальный район","97629000","Шоршельское","97629450","31007385","МУП ЖКУ Шоршелского сельского поселения Мариинско-Посадского района Чувашской Республики","2111002582","211101001","Оказание услуг в сфере водоотведения и очистки сточных вод","VO"]
[77,"Чувашская республика","Моргаушский муниципальный район","97632000","Большесундырское","97632420","26354742","МУП ЖКХ \"Моргаушское\" Моргаушского района","2112000281","211201001","Оказание услуг в сфере водоотведения и очистки сточных вод","VO"]
[78,"Чувашская республика","Моргаушский муниципальный район","97632000","Большесундырское","97632420","26433940","ООО \"Жилкомсервис\" Моргаушского района Чувашской Республики","2112390472","211201001","Оказание услуг в сфере водоотведения и очистки сточных вод","VO"]
[79,"Чувашская республика","Моргаушский муниципальный район","97632000","Кадикасинское","97632430","26433940","ООО \"Жилкомсервис\" Моргаушского района Чувашской Республики","2112390472","211201001","Оказание услуг в сфере водоотведения и очистки сточных вод","VO"]
[80,"Чувашская республика","Моргаушский муниципальный район","97632000","Моргаушское","97632435","26354742","МУП ЖКХ \"Моргаушское\" Моргаушского района","2112000281","211201001","Оказание услуг в сфере водоотведения и очистки сточных вод","VO"]
[81,"Чувашская республика","Моргаушский муниципальный район","97632000","Моргаушское","97632435","26946738","ОАО \"Моргаушский молочный завод\"","2112000387","211201001","Оказание услуг в сфере водоотведения и очистки сточных вод","VO"]
[82,"Чувашская республика","Моргаушский муниципальный район","97632000","Москакасинское","97632440","26354742","МУП ЖКХ \"Моргаушское\" Моргаушского района","2112000281","211201001","Оказание услуг в сфере водоотведения и очистки сточных вод","VO"]
[83,"Чувашская республика","Моргаушский муниципальный район","97632000","Москакасинское","97632440","26433940","ООО \"Жилкомсервис\" Моргаушского района Чувашской Республики","2112390472","211201001","Оказание услуг в сфере водоотведения и очистки сточных вод","VO"]
[84,"Чувашская республика","Моргаушский муниципальный район","97632000","Юнгинское","97632480","26433940","ООО \"Жилкомсервис\" Моргаушского района Чувашской Республики","2112390472","211201001","Оказание услуг в сфере водоотведения и очистки сточных вод","VO"]
[85,"Чувашская республика","Порецкий муниципальный район","97635000","Порецкое","97635455","28977531","МУП \"ОПЖКХ\" Порецкого района","2113003207","211301001","Оказание услуг в сфере водоотведения и очистки сточных вод","VO"]
[86,"Чувашская республика","Порецкий муниципальный район","97635000","Порецкое","97635455","26824110","ООО \"Водоканал\"","2113004137","211301001","Оказание услуг в сфере водоотведения и очистки сточных вод","VO"]
[87,"Чувашская республика","Урмарский муниципальный район","97638000","Урмарское","97638151","30878193","МУП Урмарского района \"Урмарыводхоз\"","2114003672","211401001","Оказание услуг в сфере водоотведения и очистки сточных вод","VO"]
[88,"Чувашская республика","Урмарский муниципальный район","97638000","Урмарское","97638151","30878208","МУП Урмарского района \"Урмарыводхоз\"","2114003672","211401001","Оказание услуг в сфере водоотведения","VO"]
[89,"Чувашская республика","Урмарский муниципальный район","97638000","Урмарское","97638151","30878208","МУП Урмарского района \"Урмарыводхоз\"","2114003672","211401001","Оказание услуг в сфере водоотведения и очистки сточных вод","VO"]
[90,"Чувашская республика","Урмарский муниципальный район","97638000","Урмарское","97638151","26779936","ООО \"Водоканал\"","2114903754","211401001","Оказание услуг в сфере водоотведения и очистки сточных вод","VO"]
[91,"Чувашская республика","Урмарский муниципальный район","97638000","Урмарское","97638151","26779933","ООО \"Очистные сооружения\"","2114903747","211401001","Оказание услуг в сфере водоотведения и очистки сточных вод","VO"]
[92,"Чувашская республика","Цивильский муниципальный район","97641000","Второвурманкасинское","97641440","26945542","ООО \"Мой дом\"","2115902440","211501001","Оказание услуг в сфере водоотведения и очистки сточных вод","VO"]
[93,"Чувашская республика","Цивильский муниципальный район","97641000","Второвурманкасинское","97641440","26354755","ООО \"Регион\"","2115902471","211501001","Оказание услуг в сфере водоотведения и очистки сточных вод","VO"]
[94,"Чувашская республика","Цивильский муниципальный район","97641000","Игорварское","97641420","26779930","ООО \"МАИС\"","2115905257","211501001","Оказание услуг в сфере водоотведения и очистки сточных вод","VO"]
[95,"Чувашская республика","Цивильский муниципальный район","97641000","Конарское","97641452","26354753","МУП ЖКХ \"Конар\" администрации Конарского сельского поселения Цивильского района Чувашской Республики","2115902217","211501001","Оказание услуг в сфере водоотведения и очистки сточных вод","VO"]
[96,"Чувашская республика","Цивильский муниципальный район","97641000","Конарское","97641452","26322516","ОАО \"Северо-западные магистральные нефтепроводы\"","1645000340","168150001","Оказание услуг в сфере очистки сточных вод","VO"]
[97,"Чувашская республика","Цивильский муниципальный район","97641000","Михайловское","97641434","26354749","ООО ЦПК \"Пищевик\" ЧПС","2115000709","211501001","Оказание услуг в сфере водоотведения и очистки сточных вод","VO"]
[98,"Чувашская республика","Цивильский муниципальный район","97641000","Опытное","97641424","26434511","МАУ \"Опытный\" Опытного сельского поселения Цивильского района Чувашской Республики","2115904503","211501001","Оказание услуг в сфере водоотведения и очистки сточных вод","VO"]
[99,"Чувашская республика","Цивильский муниципальный район","97641000","Таушкасинское","97641468","26379267","ЗАО \"РемСнабТехСервис\"","2115902270","211501001","Оказание услуг в сфере водоотведения и очистки сточных вод","VO"]
[100,"Чувашская республика","Цивильский муниципальный район","97641000","Тувсинское","97641464","26434571","ООО \"ТехСтройРегион\"","2115904479","211501001","Оказание услуг в сфере водоотведения и очистки сточных вод","VO"]
[101,"Чувашская республика","Цивильский муниципальный район","97641000","Цивильское","97641101","26824116","АО \"ПМК-8\"","2115000346","211501001","Оказание услуг в сфере водоотведения и очистки сточных вод","VO"]
[102,"Чувашская республика","Цивильский муниципальный район","97641000","Цивильское","97641101","26434581","ООО \"Инженерные сети\"","2115904662","211501001","Оказание услуг в сфере водоотведения и очистки сточных вод","VO"]
[103,"Чувашская республика","Цивильский муниципальный район","97641000","Цивильское","97641101","26354755","ООО \"Регион\"","2115902471","211501001","Оказание услуг в сфере водоотведения и очистки сточных вод","VO"]
[104,"Чувашская республика","Цивильский муниципальный район","97641000","Цивильское","97641101","28536784","ФКУ ИК-9 УФСИН России по Чувашской Республике","2115003629","211501001","Оказание услуг в сфере водоотведения и очистки сточных вод","VO"]
[105,"Чувашская республика","Цивильский муниципальный район","97641000","Чурачикское","97641480","26370813","МУП ЖКХ \"Чурачики\" администрации Чурачикского сельского поселения Цивильского района ЧР","2115904052","211501001","Оказание услуг в сфере водоотведения и очистки сточных вод","VO"]
[106,"Чувашская республика","Чебоксарский муниципальный район","97644000","Абашевское","97644404","26434961","ООО \"Хевеш\"","2128043509","212801001","Оказание услуг в сфере водоотведения и очистки сточных вод","VO"]
[107,"Чувашская республика","Чебоксарский муниципальный район","97644000","Атлашевское","97644448","30934362","МУП \"Жилищно-коммунальное хозяйство \"Атлашевское\"","2116003445","211601001","Оказание услуг в сфере водоотведения и очистки сточных вод","VO"]
[108,"Чувашская республика","Чебоксарский муниципальный район","97644000","Атлашевское","97644448","27592155","ООО \"Теплоэнергосети\"","2116497811","211601001","Оказание услуг в сфере водоотведения и очистки сточных вод","VO"]
[109,"Чувашская республика","Чебоксарский муниципальный район","97644000","Большекатрасьское","97644416","26436762","ООО \"Жилкомсервис\"","2116498565","211601001","Оказание услуг в сфере водоотведения и очистки сточных вод","VO"]
[110,"Чувашская республика","Чебоксарский муниципальный район","97644000","Большекатрасьское","97644416","28815596","ООО \"НОВОЕ СЕЛО\"","2116002674","211601001","Оказание услуг в сфере водоотведения и очистки сточных вод","VO"]
[111,"Чувашская республика","Чебоксарский муниципальный район","97644000","Вурман-Сюктерское","97644420","26354790","АО \"Газпром газораспределение Чебоксары\" (Санаторий \"Волга\")","2128049998","211631001","Оказание услуг в сфере водоотведения и очистки сточных вод","VO"]
[112,"Чувашская республика","Чебоксарский муниципальный район","97644000","Вурман-Сюктерское","97644420","27649410","ЗАО СКК \"Солнечный берег\"","2116480110","211601001","Оказание услуг в сфере водоотведения и очистки сточных вод","VO"]
[113,"Чувашская республика","Чебоксарский муниципальный район","97644000","Вурман-Сюктерское","97644420","26436738","ООО \"Агроздравница\"","2116490573","211601001","Оказание услуг в сфере водоотведения и очистки сточных вод","VO"]
[114,"Чувашская республика","Чебоксарский муниципальный район","97644000","Вурман-Сюктерское","97644420","26354759","ООО\"Санаторий \"Волжские зори\"","2116490679","211601001","Оказание услуг в сфере водоотведения и очистки сточных вод","VO"]
[115,"Чувашская республика","Чебоксарский муниципальный район","97644000","Ишлейское","97644432","30383253","МУП \"ЖКХ \"Ишлейское\"","2116000701","211601001","Оказание услуг в сфере водоотведения и очистки сточных вод","VO"]
[116,"Чувашская республика","Чебоксарский муниципальный район","97644000","Ишлейское","97644432","26436762","ООО \"Жилкомсервис\"","2116498565","211601001","Оказание услуг в сфере водоотведения и очистки сточных вод","VO"]
[117,"Чувашская республика","Чебоксарский муниципальный район","97644000","Ишлейское","97644432","28155491","ООО \"Жилкомсервис\"","2116498565","211601001","Оказание услуг в сфере водоотведения и очистки сточных вод","VO"]
[118,"Чувашская республика","Чебоксарский муниципальный район","97644000","Ишлейское","97644432","26354760","ООО \"ИЗВА\"","2116491707","211601001","Оказание услуг в сфере водоотведения и очистки сточных вод","VO"]
[119,"Чувашская республика","Чебоксарский муниципальный район","97644000","Ишлейское","97644432","28815596","ООО \"НОВОЕ СЕЛО\"","2116002674","211601001","Оказание услуг в сфере водоотведения и очистки сточных вод","VO"]
[120,"Чувашская республика","Чебоксарский муниципальный район","97644000","Ишлейское","97644432","27296578","ООО \"Уют\"","2116499424","211601001","Оказание услуг в сфере водоотведения и очистки сточных вод","VO"]
[121,"Чувашская республика","Чебоксарский муниципальный район","97644000","Кугесьское","97644442","26379272","БУ \"Чебоксарская РБ\" Минздравсоцразвития Чувашии","2116430101","211601001","Оказание услуг в сфере водоотведения и очистки сточных вод","VO"]
[122,"Чувашская республика","Чебоксарский муниципальный район","97644000","Кугесьское","97644442","26354758","ЗАО ПФ\"Чебоксарскагропромтехсервис\"","2116470016","211601001","Оказание услуг в сфере водоотведения и очистки сточных вод","VO"]
[123,"Чувашская республика","Чебоксарский муниципальный район","97644000","Кугесьское","97644442","27592155","ООО \"Теплоэнергосети\"","2116497811","211601001","Оказание услуг в сфере водоотведения и очистки сточных вод","VO"]
[124,"Чувашская республика","Чебоксарский муниципальный район","97644000","Кугесьское","97644442","26643089","ООО \"Теплоэнергосеть\"","2116499262","211601001","Оказание услуг в сфере водоотведения и очистки сточных вод","VO"]
[125,"Чувашская республика","Чебоксарский муниципальный район","97644000","Кугесьское","97644442","30353680","ООО \"УК\" Универсал\"","2116002610","211601001","Оказание услуг в сфере очистки сточных вод","VO"]
[126,"Чувашская республика","Чебоксарский муниципальный район","97644000","Кшаушское","97644440","28815596","ООО \"НОВОЕ СЕЛО\"","2116002674","211601001","Оказание услуг в сфере водоотведения и очистки сточных вод","VO"]
[127,"Чувашская республика","Чебоксарский муниципальный район","97644000","Лапсарское","97644444","26370833","ОАО \"Чувашавтодор\" (филиал - \"Чебоксарское ТПУ\")","2130047821","213050001","Оказание услуг в сфере очистки сточных вод","VO"]
[128,"Чувашская республика","Чебоксарский муниципальный район","97644000","Лапсарское","97644444","28156120","ООО \"АльянсГрупп\"","2116001046","211601001","Оказание услуг в сфере водоотведения и очистки сточных вод","VO"]
[129,"Чувашская республика","Чебоксарский муниципальный район","97644000","Лапсарское","97644444","28815596","ООО \"НОВОЕ СЕЛО\"","2116002674","211601001","Оказание услуг в сфере водоотведения и очистки сточных вод","VO"]
[130,"Чувашская республика","Чебоксарский муниципальный район","97644000","Лапсарское","97644444","26436813","ООО \"Холод-Сервис\"","2116494240","211601001","Оказание услуг в сфере водоотведения и очистки сточных вод","VO"]
[131,"Чувашская республика","Чебоксарский муниципальный район","97644000","Синьяльское","97644460","27592155","ООО \"Теплоэнергосети\"","2116497811","211601001","Оказание услуг в сфере водоотведения и очистки сточных вод","VO"]
[132,"Чувашская республика","Чебоксарский муниципальный район","97644000","Синьяльское","97644460","26777104","СПОК \"Дружба\"","2116858105","211601001","Оказание услуг в сфере водоотведения и очистки сточных вод","VO"]
[133,"Чувашская республика","Чебоксарский муниципальный район","97644000","Синьяльское","97644460","28428111","СПОК \"Дружба\"","2116858105","211601001","Оказание услуг в сфере водоотведения и очистки сточных вод","VO"]
[134,"Чувашская республика","Чебоксарский муниципальный район","97644000","Шинерпосинское","97644484","26379274","ОАО \"Чувашский бройлер\"","2116470231","211601001","Оказание услуг в сфере водоотведения и очистки сточных вод","VO"]
[135,"Чувашская республика","Чебоксарский муниципальный район","97644000","Шинерпосинское","97644484","28829193","ООО \"Ремстройгрупп\"","2116002554","211601001","Оказание услуг по перекачке","VO"]
[136,"Чувашская республика","Чебоксарский муниципальный район","97644000","Шинерпосинское","97644484","27592155","ООО \"Теплоэнергосети\"","2116497811","211601001","Оказание услуг в сфере водоотведения и очистки сточных вод","VO"]
[137,"Чувашская республика","Чебоксарский муниципальный район","97644000","Шинерпосинское","97644484","26643089","ООО \"Теплоэнергосеть\"","2116499262","211601001","Оказание услуг в сфере водоотведения и очистки сточных вод","VO"]
[138,"Чувашская республика","Чебоксарский муниципальный район","97644000","Шинерпосинское","97644484","28264075","ООО \"УК \"Уют\"","2116001487","211601001","Оказание услуг в сфере водоотведения и очистки сточных вод","VO"]
[139,"Чувашская республика","Шемуршинский муниципальный район","97647000","Шемуршинское","97647464","26370822","ОАО \"Коммунальник\"","2117021856","211701001","Оказание услуг в сфере очистки сточных вод","VO"]
[140,"Чувашская республика","Шемуршинский муниципальный район","97647000","Шемуршинское","97647464","26436864","ООО \"ЖКХ\"","2117021704","211701001","Оказание услуг в сфере водоотведения и очистки сточных вод","VO"]
[141,"Чувашская республика","Шумерлинский муниципальный район","97650000","Юманайское","97650465","26432379","ООО \"Юманайское ЖКХ\"","2118002454","211801001","Оказание услуг в сфере водоотведения и очистки сточных вод","VO"]
[142,"Чувашская республика","Ядринский муниципальный район","97653000","Ядринское","97653101","27565977","Ядринское МПП ЖКХ","2119000178","211901001","Оказание услуг в сфере водоотведения и очистки сточных вод","VO"]
[143,"Чувашская республика","Яльчикский муниципальный район","97655000","Яльчикское","97655440","26354769","ММПП ЖКХ Яльчикского района ЧР","2120000172","212001001","Оказание услуг в сфере водоотведения и очистки сточных вод","VO"]
[144,"Чувашская республика","Яльчикский муниципальный район","97655000","Яльчикское","97655440","26777110","ООО \"Спутник-1\"","2120002677","212001001","Оказание услуг в сфере водоотведения и очистки сточных вод","VO"]
[145,"Чувашская республика","Янтиковский муниципальный район","97658000","Янтиковское","97658445","26354770","ЗАО \"Фирма\"Акконд-агро\"","2121000217","212101001","Оказание услуг в сфере водоотведения и очистки сточных вод","VO"]
[146,"Чувашская республика","Янтиковский муниципальный район","97658000","Янтиковское","97658445","27306988","ООО \"Коммунальник\"","2121002856","212101001","Оказание услуг в сфере водоотведения и очистки сточных вод","VO"]

{"sheet":"modClassifierValidate","index":24,"n_rows":0,"n_cols":0,"rows_kept":0,"cut":false,"hidden":true,"merged":[]}

{"sheet":"modProv","index":25,"n_rows":0,"n_cols":0,"rows_kept":0,"cut":false,"hidden":true,"merged":[]}

{"sheet":"modHyp","index":26,"n_rows":0,"n_cols":0,"rows_kept":0,"cut":false,"hidden":true,"merged":[]}

{"sheet":"modList00","index":27,"n_rows":0,"n_cols":0,"rows_kept":0,"cut":false,"hidden":true,"merged":[]}

{"sheet":"modList01","index":28,"n_rows":0,"n_cols":0,"rows_kept":0,"cut":false,"hidden":true,"merged":[]}

{"sheet":"modList02","index":29,"n_rows":0,"n_cols":0,"rows_kept":0,"cut":false,"hidden":true,"merged":[]}

{"sheet":"modList03","index":30,"n_rows":0,"n_cols":0,"rows_kept":0,"cut":false,"hidden":true,"merged":[]}

{"sheet":"modList11","index":31,"n_rows":0,"n_cols":0,"rows_kept":0,"cut":false,"hidden":true,"merged":[]}

{"sheet":"modfrmDateChoose","index":32,"n_rows":0,"n_cols":0,"rows_kept":0,"cut":false,"hidden":true,"merged":[]}

{"sheet":"modComm","index":33,"n_rows":0,"n_cols":0,"rows_kept":0,"cut":false,"hidden":true,"merged":[]}

{"sheet":"modThisWorkbook","index":34,"n_rows":0,"n_cols":0,"rows_kept":0,"cut":false,"hidden":true,"merged":[]}

{"sheet":"REESTR_MO","index":35,"n_rows":318,"n_cols":4,"rows_kept":318,"cut":false,"hidden":true,"merged":[]}
["№","МР","МО","МО_ОКТМО"]
[1,"Алатырский муниципальный район","Алатырский муниципальный район","97603000"]
[2,"Алатырский муниципальный район","Алтышевское","97603405"]
[3,"Алатырский муниципальный район","Атратское","97603410"]
[4,"Алатырский муниципальный район","Ахматовское","97603415"]
[5,"Алатырский муниципальный район","Восходское","97603420"]
[6,"Алатырский муниципальный район","Иваньково-Ленинское","97603430"]
[7,"Алатырский муниципальный район","Кирское","97603438"]
[8,"Алатырский муниципальный район","Кувакинское","97603440"]
[9,"Алатырский муниципальный район","Междуреченское","97603445"]
[10,"Алатырский муниципальный район","Миренское","97603450"]
[11,"Алатырский муниципальный район","Новоайбесинское","97603455"]
[12,"Алатырский муниципальный район","Октябрьское","97603458"]
[13,"Алатырский муниципальный район","Первомайское","97603460"]
[14,"Алатырский муниципальный район","Сойгинское","97603465"]
[15,"Алатырский муниципальный район","Староайбесинское","97603475"]
[16,"Алатырский муниципальный район","Стемасское","97603480"]
[17,"Алатырский муниципальный район","Чуварлейское","97603490"]
[18,"Аликовский муниципальный район","Аликовский муниципальный район","97605000"]
[19,"Аликовский муниципальный район","Аликовское","97605405"]
[20,"Аликовский муниципальный район","Большевыльское","97605415"]
[21,"Аликовский муниципальный район","Ефремкасинское","97605420"]
[22,"Аликовский муниципальный район","Илгышевское","97605425"]
[23,"Аликовский муниципальный район","Крымзарайкинское","97605435"]
[24,"Аликовский муниципальный район","Питишевское","97605450"]
[25,"Аликовский муниципальный район","Раскильдинское","97605455"]
[26,"Аликовский муниципальный район","Таутовское","97605465"]
[27,"Аликовский муниципальный район","Тенеевское","97605470"]
[28,"Аликовский муниципальный район","Чувашско-Сорминское","97605475"]
[29,"Аликовский муниципальный район","Шумшевашское","97605485"]
[30,"Аликовский муниципальный район","Яндобиинское","97605490"]
[31,"Батыревский муниципальный район","Алманчиковское","97607402"]
[32,"Батыревский муниципальный район","Балабаш-Баишевское","97607405"]
[33,"Батыревский муниципальный район","Батыревский муниципальный район","97607000"]
[34,"Батыревский муниципальный район","Батыревское","97607410"]
[35,"Батыревский муниципальный район","Бахтигильдинское","97607415"]
[36,"Батыревский муниципальный район","Бикшикское","97607420"]
[37,"Батыревский муниципальный район","Большечеменевское","97607425"]
[38,"Батыревский муниципальный район","Долгоостровское","97607430"]
[39,"Батыревский муниципальный район","Кзыл-Чишминское","97607435"]
[40,"Батыревский муниципальный район","Новоахпердинское","97607440"]
[41,"Батыревский муниципальный район","Норваш-Шигалинское","97607445"]
[42,"Батыревский муниципальный район","Первомайское","97607450"]
[43,"Батыревский муниципальный район","Сигачинское","97607452"]
[44,"Батыревский муниципальный район","Сугутское","97607455"]
[45,"Батыревский муниципальный район","Тарханское","97607460"]
[46,"Батыревский муниципальный район","Татарско-Сугутское","97607465"]
[47,"Батыревский муниципальный район","Тойсинское","97607470"]
[48,"Батыревский муниципальный район","Туруновское","97607472"]
[49,"Батыревский муниципальный район","Шаймурзинское","97607480"]
[50,"Батыревский муниципальный район","Шыгырданское","97607475"]
[51,"Вурнарский муниципальный район","Азимсирминское","97610404"]
[52,"Вурнарский муниципальный район","Алгазинское","97610408"]
[53,"Вурнарский муниципальный район","Апнерское","97610412"]
[54,"Вурнарский муниципальный район","Большеторханское","97610416"]
[55,"Вурнарский муниципальный район","Большеяушское","97610420"]
[56,"Вурнарский муниципальный район","Буртасинское","97610424"]
[57,"Вурнарский муниципальный район","Вурманкасинское","97610428"]
[58,"Вурнарский муниципальный район","Вурнарский муниципальный район","97610000"]
[59,"Вурнарский муниципальный район","Вурнарское","97610151"]
[60,"Вурнарский муниципальный район","Ермошкинское","97610432"]
[61,"Вурнарский муниципальный район","Ершипосинское","97610436"]
[62,"Вурнарский муниципальный район","Калининское","97610440"]
[63,"Вурнарский муниципальный район","Кольцовское","97610444"]
[64,"Вурнарский муниципальный район","Малояушское","97610452"]
[65,"Вурнарский муниципальный район","Ойкас-Кибекское","97610460"]
[66,"Вурнарский муниципальный район","Санарпосинское","97610468"]
[67,"Вурнарский муниципальный район","Сявалкасинское","97610472"]
[68,"Вурнарский муниципальный район","Хирпосинское","97610478"]
[69,"Вурнарский муниципальный район","Шинерское","97610480"]
[70,"Вурнарский муниципальный район","Янгорчинское","97610484"]
[71,"Город Алатырь","Город Алатырь","97704000"]
[72,"Город Канаш","Город Канаш","97707000"]
[73,"Город Новочебоксарск","Город Новочебоксарск","97710000"]
[74,"Город Чебоксары","Город Чебоксары","97701000"]
[75,"Город Шумерля","Город Шумерля","97713000"]
[76,"Ибресинский муниципальный район","Айбечское","97613405"]
[77,"Ибресинский муниципальный район","Андреевское","97613410"]
[78,"Ибресинский муниципальный район","Березовское","97613415"]
[79,"Ибресинский муниципальный район","Большеабакасинское","97613420"]
[80,"Ибресинский муниципальный район","Буинское","97613423"]
[81,"Ибресинский муниципальный район","Ибресинский муниципальный район","97613000"]
[82,"Ибресинский муниципальный район","Ибресинское","97613151"]
[83,"Ибресинский муниципальный район","Кировское","97613430"]
[84,"Ибресинский муниципальный район","Климовское","97613435"]
[85,"Ибресинский муниципальный район","Малокармалинское","97613440"]
[86,"Ибресинский муниципальный район","Новочурашевское","97613445"]
[87,"Ибресинский муниципальный район","Хормалинское","97613450"]
[88,"Ибресинский муниципальный район","Чувашско-Тимяшское","97613455"]
[89,"Ибресинский муниципальный район","Ширтанское","97613425"]
[90,"Канашский муниципальный район","Асхвинское","97616404"]
[91,"Канашский муниципальный район","Атнашевское","97616406"]
[92,"Канашский муниципальный район","Ачакасинское","97616408"]
[93,"Канашский муниципальный район","Байгильдинское","97616412"]
[94,"Канашский муниципальный район","Вутабосинское","97616416"]
[95,"Канашский муниципальный район","Канашский муниципальный район","97616000"]
[96,"Канашский муниципальный район","Караклинское","97616419"]
[97,"Канашский муниципальный район","Кошноруйское","97616420"]
[98,"Канашский муниципальный район","Малобикшихское","97616424"]
[99,"Канашский муниципальный район","Малокибечское","97616428"]
[100,"Канашский муниципальный район","Новоурюмовское","97616432"]
[101,"Канашский муниципальный район","Новочелкасинское","97616436"]
[102,"Канашский муниципальный район","Сеспельское","97616440"]
[103,"Канашский муниципальный район","Среднекибечское","97616444"]
[104,"Канашский муниципальный район","Сугайкасинское","97616448"]
[105,"Канашский муниципальный район","Тобурдановское","97616456"]
[106,"Канашский муниципальный район","Ухманское","97616460"]
[107,"Канашский муниципальный район","Хучельское","97616462"]
[108,"Канашский муниципальный район","Чагасьское","97616464"]
[109,"Канашский муниципальный район","Шакуловское","97616468"]
[110,"Канашский муниципальный район","Шальтямское","97616472"]
[111,"Канашский муниципальный район","Шибылгинское","97616474"]
[112,"Канашский муниципальный район","Шихазанское","97616476"]
[113,"Канашский муниципальный район","Ямашевское","97616484"]
[114,"Канашский муниципальный район","Янгличское","97616488"]
[115,"Козловский муниципальный район","Андреево-Базарское","97619405"]
[116,"Козловский муниципальный район","Аттиковское","97619410"]
[117,"Козловский муниципальный район","Байгуловское","97619415"]
[118,"Козловский муниципальный район","Еметкинское","97619425"]
[119,"Козловский муниципальный район","Карамышевское","97619430"]
[120,"Козловский муниципальный район","Карачаевское","97619435"]
[121,"Козловский муниципальный район","Козловский муниципальный район","97619000"]
[122,"Козловский муниципальный район","Козловское","97619101"]
[123,"Козловский муниципальный район","Солдыбаевское","97619443"]
[124,"Козловский муниципальный район","Тюрлеминское","97619445"]
[125,"Козловский муниципальный район","Янгильдинское","97619450"]
[126,"Комсомольский муниципальный район","Александровское","97621405"]
[127,"Комсомольский муниципальный район","Альбусь-Сюрбеевское","97621410"]
[128,"Комсомольский муниципальный район","Асановское","97621415"]
[129,"Комсомольский муниципальный район","Кайнлыкское","97621420"]
[130,"Комсомольский муниципальный район","Комсомольский муниципальный район","97621000"]
[131,"Комсомольский муниципальный район","Комсомольское","97621425"]
[132,"Комсомольский муниципальный район","Новочелны-Сюрбеевское","97621440"]
[133,"Комсомольский муниципальный район","Полевосундырское","97621445"]
[134,"Комсомольский муниципальный район","Сюрбей-Токаевское","97621449"]
[135,"Комсомольский муниципальный район","Тугаевское","97621452"]
[136,"Комсомольский муниципальный район","Урмаевское","97621455"]
[137,"Комсомольский муниципальный район","Чичканское","97621460"]
[138,"Комсомольский муниципальный район","Шераутское","97621465"]
[139,"Красноармейский муниципальный район","Алманчинское","97624405"]
[140,"Красноармейский муниципальный район","Большешатьминское","97624410"]
[141,"Красноармейский муниципальный район","Исаковское","97624420"]
[142,"Красноармейский муниципальный район","Караевское","97624425"]
[143,"Красноармейский муниципальный район","Красноармейский муниципальный район","97624000"]
[144,"Красноармейский муниципальный район","Красноармейское","97624430"]
[145,"Красноармейский муниципальный район","Пикшикское","97624434"]
[146,"Красноармейский муниципальный район","Убеевское","97624440"]
[147,"Красноармейский муниципальный район","Чадукасинское","97624445"]
[148,"Красноармейский муниципальный район","Яншихово-Челлинское","97624460"]
[149,"Красночетайский муниципальный район","Акчикасинское","97626405"]
[150,"Красночетайский муниципальный район","Атнарское","97626415"]
[151,"Красночетайский муниципальный район","Большеатменское","97626418"]
[152,"Красночетайский муниципальный район","Испуханское","97626425"]
[153,"Красночетайский муниципальный район","Красночетайский муниципальный район","97626000"]
[154,"Красночетайский муниципальный район","Красночетайское","97626430"]
[155,"Красночетайский муниципальный район","Пандиковское","97626435"]
[156,"Красночетайский муниципальный район","Питеркинское","97626440"]
[157,"Красночетайский муниципальный район","Староатайское","97626445"]
[158,"Красночетайский муниципальный район","Хозанкинское","97626450"]
[159,"Красночетайский муниципальный район","Штанашское","97626455"]
[160,"Мариинско-Посадский муниципальный район","Аксаринское","97629445"]
[161,"Мариинско-Посадский муниципальный район","Бичуринское","97629410"]
[162,"Мариинско-Посадский муниципальный район","Большешигаевское","97629465"]
[163,"Мариинско-Посадский муниципальный район","Карабашское","97629415"]
[164,"Мариинско-Посадский муниципальный район","Кугеевское","97629420"]
[165,"Мариинско-Посадский муниципальный район","Мариинско-Посадский муниципальный район","97629000"]
[166,"Мариинско-Посадский муниципальный район","Мариинско-Посадское","97629101"]
[167,"Мариинско-Посадский муниципальный район","Октябрьское","97629430"]
[168,"Мариинско-Посадский муниципальный район","Первочурашевское","97629435"]
[169,"Мариинско-Посадский муниципальный район","Приволжское","97629425"]
[170,"Мариинско-Посадский муниципальный район","Сутчевское","97629440"]
[171,"Мариинско-Посадский муниципальный район","Шоршельское","97629450"]
[172,"Мариинско-Посадский муниципальный район","Эльбарусовское","97629460"]
[173,"Моргаушский муниципальный район","Александровское","97632410"]
[174,"Моргаушский муниципальный район","Большесундырское","97632420"]
[175,"Моргаушский муниципальный район","Ильинское","97632425"]
[176,"Моргаушский муниципальный район","Кадикасинское","97632430"]
[177,"Моргаушский муниципальный район","Моргаушский муниципальный район","97632000"]
[178,"Моргаушский муниципальный район","Моргаушское","97632435"]
[179,"Моргаушский муниципальный район","Москакасинское","97632440"]
[180,"Моргаушский муниципальный район","Орининское","97632445"]
[181,"Моргаушский муниципальный район","Сятракасинское","97632455"]
[182,"Моргаушский муниципальный район","Тораевское","97632460"]
[183,"Моргаушский муниципальный район","Хорнойское","97632463"]
[184,"Моргаушский муниципальный район","Чуманкасинское","97632465"]
[185,"Моргаушский муниципальный район","Шатьмапосинское","97632470"]
[186,"Моргаушский муниципальный район","Юнгинское","97632480"]
[187,"Моргаушский муниципальный район","Юськасинское","97632485"]
[188,"Моргаушский муниципальный район","Ярабайкасинское","97632488"]
[189,"Моргаушский муниципальный район","Ярославское","97632490"]
[190,"Порецкий муниципальный район","Анастасовское","97635405"]
[191,"Порецкий муниципальный район","Козловское","97635420"]
[192,"Порецкий муниципальный район","Кудеихинское","97635425"]
[193,"Порецкий муниципальный район","Мишуковское","97635430"]
[194,"Порецкий муниципальный район","Напольновское","97635435"]
[195,"Порецкий муниципальный район","Никулинское","97635440"]
[196,"Порецкий муниципальный район","Октябрьское","97635445"]
[197,"Порецкий муниципальный район","Порецкий муниципальный район","97635000"]
[198,"Порецкий муниципальный район","Порецкое","97635455"]
[199,"Порецкий муниципальный район","Рындинское","97635485"]
[200,"Порецкий муниципальный район","Семеновское","97635465"]
[201,"Порецкий муниципальный район","Сиявское","97635470"]
[202,"Порецкий муниципальный район","Сыресинское","97635480"]
[203,"Урмарский муниципальный район","Арабосинское","97638405"]
[204,"Урмарский муниципальный район","Бишевское","97638408"]
[205,"Урмарский муниципальный район","Большечакинское","97638410"]
[206,"Урмарский муниципальный район","Большеяниковское","97638415"]
[207,"Урмарский муниципальный район","Ковалинское","97638425"]
[208,"Урмарский муниципальный район","Кудеснерское","97638430"]
[209,"Урмарский муниципальный район","Кульгешское","97638432"]
[210,"Урмарский муниципальный район","Мусирминское","97638435"]
[211,"Урмарский муниципальный район","Староурмарское","97638440"]
[212,"Урмарский муниципальный район","Тегешевское","97638445"]
[213,"Урмарский муниципальный район","Урмарский муниципальный район","97638000"]
[214,"Урмарский муниципальный район","Урмарское","97638151"]
[215,"Урмарский муниципальный район","Челкасинское","97638450"]
[216,"Урмарский муниципальный район","Чубаевское","97638455"]
[217,"Урмарский муниципальный район","Шигалинское","97638460"]
[218,"Урмарский муниципальный район","Шихабыловское","97638462"]
[219,"Урмарский муниципальный район","Шоркистринское","97638465"]
[220,"Цивильский муниципальный район","Богатыревское","97641404"]
[221,"Цивильский муниципальный район","Булдеевское","97641412"]
[222,"Цивильский муниципальный район","Второвурманкасинское","97641440"]
[223,"Цивильский муниципальный район","Игорварское","97641420"]
[224,"Цивильский муниципальный район","Конарское","97641452"]
[225,"Цивильский муниципальный район","Малоянгорчинское","97641437"]
[226,"Цивильский муниципальный район","Медикасинское","97641432"]
[227,"Цивильский муниципальный район","Михайловское","97641434"]
[228,"Цивильский муниципальный район","Опытное","97641424"]
[229,"Цивильский муниципальный район","Первостепановское","97641408"]
[230,"Цивильский муниципальный район","Поваркасинское","97641444"]
[231,"Цивильский муниципальный район","Рындинское","97641448"]
[232,"Цивильский муниципальный район","Таушкасинское","97641468"]
[233,"Цивильский муниципальный район","Тувсинское","97641464"]
[234,"Цивильский муниципальный район","Цивильский муниципальный район","97641000"]
[235,"Цивильский муниципальный район","Цивильское","97641101"]
[236,"Цивильский муниципальный район","Чиричкасинское","97641475"]
[237,"Цивильский муниципальный район","Чурачикское","97641480"]
[238,"Чебоксарский муниципальный район","Абашевское","97644404"]
[239,"Чебоксарский муниципальный район","Акулевское","97644408"]
[240,"Чебоксарский муниципальный район","Атлашевское","97644448"]
[241,"Чебоксарский муниципальный район","Большекатрасьское","97644416"]
[242,"Чебоксарский муниципальный район","Вурман-Сюктерское","97644420"]
[243,"Чебоксарский муниципальный район","Ишакское","97644428"]
[244,"Чебоксарский муниципальный район","Ишлейское","97644432"]
[245,"Чебоксарский муниципальный район","Кугесьское","97644442"]
[246,"Чебоксарский муниципальный район","Кшаушское","97644440"]
[247,"Чебоксарский муниципальный район","Лапсарское","97644444"]
[248,"Чебоксарский муниципальный район","Сарабакасинское","97644452"]
[249,"Чебоксарский муниципальный район","Синьял-Покровское","97644456"]
[250,"Чебоксарский муниципальный район","Синьяльское","97644460"]
[251,"Чебоксарский муниципальный район","Сирмапосинское","97644454"]
[252,"Чебоксарский муниципальный район","Чебоксарский муниципальный район","97644000"]
[253,"Чебоксарский муниципальный район","Чиршкасинское","97644482"]
[254,"Чебоксарский муниципальный район","Шинерпосинское","97644484"]
[255,"Чебоксарский муниципальный район","Янышское","97644488"]
[256,"Шемуршинский муниципальный район","Бичурга-Баишевское","97647410"]
[257,"Шемуршинский муниципальный район","Большебуяновское","97647417"]
[258,"Шемуршинский муниципальный район","Карабай-Шемуршинское","97647422"]
[259,"Шемуршинский муниципальный район","Малобуяновское","97647428"]
[260,"Шемуршинский муниципальный район","Старочукальское","97647442"]
[261,"Шемуршинский муниципальный район","Трехбалтаевское","97647448"]
[262,"Шемуршинский муниципальный район","Чепкас-Никольское","97647455"]
[263,"Шемуршинский муниципальный район","Чукальское","97647460"]
[264,"Шемуршинский муниципальный район","Шемуршинский муниципальный район","97647000"]
[265,"Шемуршинский муниципальный район","Шемуршинское","97647464"]
[266,"Шумерлинский муниципальный район","Большеалгашинское","97650405"]
[267,"Шумерлинский муниципальный район","Егоркинское","97650410"]
[268,"Шумерлинский муниципальный район","Краснооктябрьское","97650415"]
[269,"Шумерлинский муниципальный район","Магаринское","97650420"]
[270,"Шумерлинский муниципальный район","Нижнекумашкинское","97650430"]
[271,"Шумерлинский муниципальный район","Русско-Алгашинское","97650440"]
[272,"Шумерлинский муниципальный район","Торханское","97650445"]
[273,"Шумерлинский муниципальный район","Туванское","97650450"]
[274,"Шумерлинский муниципальный район","Ходарское","97650455"]
[275,"Шумерлинский муниципальный район","Шумерлинский муниципальный район","97650000"]
[276,"Шумерлинский муниципальный район","Шумерлинское","97650460"]
[277,"Шумерлинский муниципальный район","Юманайское","97650465"]
[278,"Ядринский муниципальный район","Большесундырское","97653410"]
[279,"Ядринский муниципальный район","Большечурашевское","97653415"]
[280,"Ядринский муниципальный район","Большешемердянское","97653420"]
[281,"Ядринский муниципальный район","Иваньковское","97653425"]
[282,"Ядринский муниципальный район","Кильдишевское","97653435"]
[283,"Ядринский муниципальный район","Кукшумское","97653440"]
[284,"Ядринский муниципальный район","Малокарачкинское","97653445"]
[285,"Ядринский муниципальный район","Мочарское","97653448"]
[286,"Ядринский муниципальный район","Николаевское","97653450"]
[287,"Ядринский муниципальный район","Персирланское","97653455"]
[288,"Ядринский муниципальный район","Советское","97653460"]
[289,"Ядринский муниципальный район","Старотиньгешское","97653465"]
[290,"Ядринский муниципальный район","Стрелецкое","97653470"]
[291,"Ядринский муниципальный район","Хочашевское","97653475"]
[292,"Ядринский муниципальный район","Чебаковское","97653480"]
[293,"Ядринский муниципальный район","Ювановское","97653485"]
[294,"Ядринский муниципальный район","Ядринский муниципальный район","97653000"]
[295,"Ядринский муниципальный район","Ядринское","97653101"]
[296,"Ядринский муниципальный район","Ядринское сельское","97653490"]
[297,"Яльчикский муниципальный район","Большетаябинское","97655405"]
[298,"Яльчикский муниципальный район","Большеяльчикское","97655410"]
[299,"Яльчикский муниципальный район","Кильдюшевское","97655415"]
[300,"Яльчикский муниципальный район","Лащ-Таябинское","97655420"]
[301,"Яльчикский муниципальный район","Малотаябинское","97655425"]
[302,"Яльчикский муниципальный район","Новошимкусское","97655430"]
[303,"Яльчикский муниципальный район","Сабанчинское","97655435"]
[304,"Яльчикский муниципальный район","Яльчикский муниципальный район","97655000"]
[305,"Яльчикский муниципальный район","Яльчикское","97655440"]
[306,"Яльчикский муниципальный район","Янтиковское","97655445"]
[307,"Янтиковский муниципальный район","Алдиаровское","97658405"]
[308,"Янтиковский муниципальный район","Индырчское","97658410"]
[309,"Янтиковский муниципальный район","Можарское","97658415"]
[310,"Янтиковский муниципальный район","Новобуяновское","97658420"]
[311,"Янтиковский муниципальный район","Турмышское","97658425"]
[312,"Янтиковский муниципальный район","Тюмеревское","97658430"]
[313,"Янтиковский муниципальный район","Чутеевское","97658435"]
[314,"Янтиковский муниципальный район","Шимкусское","97658440"]
[315,"Янтиковский муниципальный район","Янтиковский муниципальный район","97658000"]
[316,"Янтиковский муниципальный район","Янтиковское","97658445"]
[317,"Янтиковский муниципальный район","Яншихово-Норвашское","97658450"]

{"sheet":"modfrmReestrMR","index":36,"n_rows":0,"n_cols":0,"rows_kept":0,"cut":false,"hidden":true,"merged":[]}

{"sheet":"modfrmCheckUpdates","index":37,"n_rows":0,"n_cols":0,"rows_kept":0,"cut":false,"hidden":true,"merged":[]}

{"sheet":"Лист1","index":38,"n_rows":0,"n_cols":0,"rows_kept":0,"cut":false,"hidden":false,"merged":[]}